Cogmind - Beta 12 @@@ ROGUE MODE // 2023.05.10 @ 23:55:00 Player: Savant Result: Destroyed by S-43 Plague with Heavy Machine Gun Performance ------------- Evolutions (7) 3500 Regions Visited (27) 5400 Robots Destroyed (476) 2380 Value Destroyed (26504) 26504 Prototype IDs (66) 1320 Alien Tech Used (0) 0 Bonus (24700) 24700 TOTAL SCORE: 63804 Bonus ------- High Alert Combat Kills 8736 Follower Combat Kills 12647 Entered Garrisons 1600 Used RIF Installer 4500 Network Hubs Disabled 600 Built Enhanced Grunts 300 Friendly Fire -3683 Cogmind --------- Core Integrity 0/1300 Matter 300/300 Energy 65/100 System Corruption 25% Temperature Cool (0) Movement Core (50) Location -3/Armory Parts ------- > --- POWER (2) -------- (None) > --- PROPULSION (4) --- (None) > --- UTILITY (12) ----- Experimental Optical Array Experimental Core Analyzer Improved System Shield Advanced System Shield Relay Coupler [Sentry] (5) > --- WEAPON (3) ------- (None) > --- INVENTORY (5) ---- Advanced Cooling System Improved Kinecellerator Antimissile System Authchip [Processor] Relay Coupler [Proto] (15) Peak State ------------ > --- POWER ------------ Heavy Antimatter Reactor Quantum Reactor > --- PROPULSION ------- Centrium Heavy Treads Biometal Heavy Treads > --- UTILITY ---------- Advanced Coolant Injector Huge Storage Unit Experimental Targeting Computer Experimental Core Analyzer Advanced Weapon Cycler Improved Utility Shielding Centrium Medium Armor Plating Advanced Hacking Suite Improved System Shield Advanced System Shield Relay Coupler [Sentry] Relay Coupler [Behemoth] > --- WEAPON ----------- Enhanced Quantum Rifle Enhanced Quantum Rifle Enhanced Nova Cannon > --- INVENTORY -------- Light Antimatter Reactor Biometal Heavy Treads Advanced Cooling System Advanced Energy Well Improved Matter Compressor Experimental Optical Array Experimental Sensor Array Improved Kinecellerator Advanced Remote Shield Relay Coupler [Proto] Relay Coupler [Proto] Relay Coupler [Proto] Advanced Component Analysis Suite Gamma Rifle Enhanced Quantum Rifle Enhanced Quantum Rifle Enhanced Quantum Rifle Enhanced Quantum Rifle Enhanced Quantum Rifle Improved Matter Neutralizer Linear Accelerator Fusion Bomb Launcher Advanced Remote Datajack Advanced Remote Datajack [Rating: 171] Favorites ----------- Power Reinforced Fission Core Engine Heavy Ion Engine Power Core Reinforced Fission Core Reactor Antimatter Reactor Propulsion Armored Wheel Treads Centrium Heavy Treads Wheel Armored Wheel Utility Huge Storage Unit Device Advanced Cooling System Storage Huge Storage Unit Processor Advanced Targeting Computer Hackware Improved Hacking Suite Protection Medium Regenerative Plating Weapon Advanced KE Penetrator Energy Gun Cooled Plasma Rifle Energy Cannon Neutron Cannon Ballistic Gun Advanced KE Penetrator Ballistic Cannon Heavy Gauss Cannon Launcher Improved Grenade Launcher Special Weapon Improved Remote Datajack Impact Weapon Great Maul Slashing Weapon Chainsword Special Melee Weapon Improved Datajack Build | -11 -10 -10 -9 -8 -8 -8 -8 -8 -7 -7 -6 -6 -6 -6 -6 -5 -5 -5 -5 -5 -5 -4 -4 -4 -4 -3 -3 ------- Run | Jun Mat Min Mat Mat Gar Mat Sto Gar Fac Gar Fac Ext Cet Arc Hub Fac Gar Fac Gar Fac Gar Fac Gar Fac Gar Res Arm Slots Evolved 14 | . . . 2 2 . . . . 2 . 2 . . . . 2 . . . . . 2 . . . 2 . Power 1 | . . . . . . . . . . . . . . . . . . . . . . 1 . . . . . Propulsion 2 | . . . 1 . . . . . . . . . . . . 1 . . . . . . . . . . . Utility 10 | . . . 1 2 . . . . 1 . 2 . . . . 1 . . . . . 1 . . . 2 . Weapon 1 | . . . . . . . . . 1 . . . . . . . . . . . . . . . . . . Parts Attached 856 | 7 17 1 67 64 27 71 22 7 21 38 32 13 8 4 16 45 17 36 26 45 17 24 20 24 17 104 66 Power 41 | 2 . . 3 2 1 4 1 1 1 1 1 . 1 . . 1 1 . . 1 2 2 . 1 2 4 9 Engine 13 | 2 . . 3 2 1 3 1 1 . . . . . . . . . . . . . . . . . . . Core 4 | . . . . . . 1 . . 1 . . . . . . . 1 . . 1 . . . . . . . Reactor 24 | . . . . . . . . . . 1 1 . 1 . . 1 . . . . 2 2 . 1 2 4 9 Propulsion 149 | 2 6 . 28 27 12 21 10 . 7 6 1 . 3 . 2 2 . 4 1 1 1 . 1 1 1 5 7 Treads 83 | 1 3 . 16 13 4 11 5 . 4 3 . . 2 . 1 2 . 4 1 1 1 . 1 1 1 1 7 Leg . | . . . . . . . . . . . . . . . . . . . . . . . . . . . . Wheel 66 | 1 3 . 12 14 8 10 5 . 3 3 1 . 1 . 1 . . . . . . . . . . 4 . Hover . | . . . . . . . . . . . . . . . . . . . . . . . . . . . . Flight . | . . . . . . . . . . . . . . . . . . . . . . . . . . . . Utility 303 | 1 3 . 13 22 5 13 7 1 9 10 17 3 3 3 11 33 5 16 8 26 2 9 7 6 6 43 21 Device 126 | . 1 . 5 14 1 4 3 . 6 3 6 1 1 1 7 14 1 7 3 6 . 2 2 1 1 21 15 Storage 8 | 1 2 . 1 . . 2 . . . . . . . . . 2 . . . . . . . . . . . Processor 11 | . . . . 2 . 2 . . . . . . . . . 1 . . 3 . . . . 1 . 1 1 Hackware 69 | . . . . 1 2 2 1 . 1 5 7 1 . . 2 5 3 4 1 10 1 5 3 3 3 9 . Protection 89 | . . . 7 5 2 3 3 1 2 2 4 1 2 2 2 11 1 5 1 10 1 2 2 1 2 12 5 Artifact . | . . . . . . . . . . . . . . . . . . . . . . . . . . . . Weapon 363 | 2 8 1 23 13 9 33 4 5 4 21 13 10 1 1 3 9 11 16 17 17 12 13 12 16 8 52 29 Energy Gun 75 | 2 3 . . 1 1 7 . . 2 3 6 4 . . . 3 . 3 3 . . 5 3 5 1 10 13 Energy Cannon 51 | . . . 3 4 1 6 . . . 1 . . . . 2 3 . 5 . 3 5 . 2 1 . 6 9 Ballistic Gun 93 | . 3 . 9 5 4 7 2 1 1 7 . 1 1 . 1 1 3 3 6 4 3 2 3 3 3 19 1 Ballistic Cannon 21 | . . 1 3 . . 1 . 1 . 3 1 1 . 1 . . 2 1 1 . 1 . . . 1 1 2 Launcher 23 | . . . 2 1 2 3 2 2 . . . . . . . . 2 . . 2 . . . 1 . 2 4 Special Weapon 73 | . 2 . 1 . . 1 . . . . 5 4 . . . 2 4 4 7 7 3 6 4 6 3 14 . Impact Weapon 18 | . . . 5 2 1 6 . 1 1 2 . . . . . . . . . . . . . . . . . Slashing Weapon 1 | . . . . . . . . . . . . . . . . . . . . 1 . . . . . . . Piercing Weapon . | . . . . . . . . . . . . . . . . . . . . . . . . . . . . Special Melee Weapon 8 | . . . . . . 2 . . . 5 1 . . . . . . . . . . . . . . . . Unidentified Prototypes 15 | . . . 2 1 . 1 1 . . . . . 3 . 1 1 . 1 2 2 . . . . . . . Corrupted Parts 3 | . . . . . . . . . . . . . . . 3 . . . . . . . . . . . . System Corruption 27 | . . . . . . . . . . . . . . . 27 . . . . . . . . . . . . Parts Lost 71 | . 2 . 6 2 1 8 1 . 1 1 . . . . . 1 1 1 . . . . . . . 11 35 Power 14 | . . . . . 1 1 1 . . . . . . . . 1 1 . . . . . . . . 2 7 Propulsion 12 | . . . 3 . . 2 . . . 1 . . . . . . . . . . . . . . . 2 4 Utility 20 | . . . 2 1 . 2 . . . . . . . . . . . . . . . . . . . 2 13 Weapon 25 | . 2 . 1 1 . 3 . . 1 . . . . . . . . 1 . . . . . . . 5 11 Highest Loss Streak 18 | . 1 . 3 2 1 3 1 . 1 1 . . . . . 1 1 1 . . . . . . . 5 18 To Critical Strikes 3 | . . . . . . . . . . . . . . . . . . . . . . . . . . 3 . Average Slot Usage (%) 93 | . 98 100 99 100 100 99 100 100 99 99 99 99 99 100 99 87 87 87 88 87 87 88 89 89 88 89 88 Engine 3 | . 14 14 11 9 9 8 9 9 2 . . . . . . . . . . . . 3 . . . . . Core 1 | . . . . . . . . . 4 1 . . . . . . 1 5 5 4 2 . . . . . . Reactor 3 | . . . . . . . . . . 5 5 6 6 6 6 5 3 . . . 2 6 10 10 10 8 8 Treads 9 | . 14 14 14 10 9 9 9 9 8 7 6 6 5 6 6 10 11 11 11 10 10 10 10 10 10 5 8 Wheel 7 | . 13 14 18 16 17 17 17 18 13 14 12 13 12 13 12 . . . . . . . . . . 2 . Device 6 | . 12 14 14 13 3 6 13 7 7 4 3 2 6 11 13 8 5 2 9 2 5 4 3 2 . 3 12 Storage 6 | . 14 14 11 9 9 9 9 9 7 7 6 6 6 6 6 5 5 5 5 5 5 5 5 5 5 4 3 Processor 7 | . . . . 6 9 11 9 9 7 7 6 6 6 6 6 11 5 5 6 11 11 10 10 10 10 9 9 Hackware 18 | . . . . 8 14 9 4 9 14 17 28 26 26 8 11 21 23 27 16 26 19 21 23 28 32 32 22 Protection 7 | . . . 7 7 9 8 9 10 7 6 5 9 6 18 13 3 10 8 11 4 8 9 8 5 3 5 4 Energy Gun 3 | . 22 . . . . 2 . . 5 1 3 4 13 8 6 4 . 2 5 . . 3 3 4 2 2 7 Energy Cannon 2 | . . . 2 8 3 3 . . . . . . . . 1 4 5 4 . 3 4 . . . . 1 4 Ballistic Gun 7 | . 3 14 15 9 14 10 9 8 7 12 6 5 6 6 6 5 3 . 2 2 7 9 9 9 9 6 . Ballistic Cannon 2 | . . 13 2 . . . 9 7 7 6 6 5 . 3 4 . 4 5 5 5 2 . . . . . . Special Weapon 1 | . 1 . . . . . . . . . 2 2 . . . . 1 1 2 3 . 2 1 . 2 2 . Naked Turns . | . . . . . . . . . . . . . . . . . . . . . . . . . . . . Heaviest Build 157 | 14 30 31 107 117 117 108 114 115 123 129 130 129 127 152 152 147 136 138 148 138 141 149 155 150 144 157 156 Greatest Support 160 | 16 40 16 60 32 24 42 40 24 76 24 24 24 24 24 100 160 160 160 160 160 160 155 155 155 150 155 155 Greatest Overweight (x) 12 | . 1 1 6 5 4 4 9 4 8 5 10 5 10 6 12 . . . . . 1 . . . . 9 4 Average Overweight (x) 2 | . . 1 2 3 4 3 4 4 4 4 5 4 5 5 5 . . . . . . . . . . 2 . Largest Inventory Capacity 25 | 8 15 15 25 25 25 25 25 25 25 25 25 25 25 25 25 25 25 25 25 25 25 25 25 25 25 25 25 Average Capacity 24 | 7 14 15 23 25 25 25 25 25 25 25 25 25 25 25 25 25 25 25 25 25 25 25 25 25 25 25 24 Most Carried 25 | 4 15 15 25 25 25 25 25 25 25 25 25 25 25 25 25 25 25 25 25 25 25 25 25 25 25 25 25 Average Carried 23 | 1 11 14 22 24 24 24 24 24 24 24 24 24 24 24 24 24 24 24 24 21 23 22 23 24 24 23 22 Final Capacity 25 | 8 15 15 25 25 25 25 25 25 25 25 25 25 25 25 25 25 25 25 25 25 25 25 25 25 25 25 5 Final Carried 25 | 4 15 15 25 25 25 25 25 25 24 25 24 25 25 25 25 25 25 24 25 21 25 22 25 24 25 25 5 Class Distribution -------------------- 24% | Mutant 11% | Botlord-Mutant 11% | Botlord-Gunner 10% | Hacker-Mutant 8% | Commander-Mutant 8% | Hacker-Gunner 6% | Bothacker-Mutant 4% | Commander-Gunner 4% | Commander-Tank Dominant Class ---------------- Mutant | -10/Materials Mutant | -10/Mines Mutant | -9/Materials Mutant | -8/Materials Hacker-Mutant | -8/Garrison Mutant | -8/Materials Mutant | -8/Storage Mutant | -8/Garrison Hacker-Gunner | -7/Factory Hacker-Mutant | -7/Garrison Commander-Gunner | -6/Factory Commander-Mutant | -6/Extension Commander-Gunner | -6/Cetus Commander-Tank | -6/Archives Commander-Tank | -6/Hub_04(d) Hacker-Mutant | -5/Factory Hacker-Gunner | -5/Garrison Hacker-Gunner | -5/Factory Bothacker-Mutant | -5/Garrison Commander-Mutant | -5/Factory Bothacker-Mutant | -5/Garrison Botlord-Gunner | -4/Factory Botlord-Gunner | -4/Garrison Botlord-Gunner | -4/Factory Botlord-Mutant | -4/Garrison Botlord-Mutant | -3/Research Botlord-Gunner | -3/Armory Resources | -11 -10 -10 -9 -8 -8 -8 -8 -8 -7 -7 -6 -6 -6 -6 -6 -5 -5 -5 -5 -5 -5 -4 -4 -4 -4 -3 -3 ----------- Run | Jun Mat Min Mat Mat Gar Mat Sto Gar Fac Gar Fac Ext Cet Arc Hub Fac Gar Fac Gar Fac Gar Fac Gar Fac Gar Res Arm Matter Collected 20178 | 222 385 10 1531 905 707 1208 821 180 405 832 735 570 128 168 392 506 789 763 664 1222 1072 480 710 574 392 2691 1116 Remotely . | . . . . . . . . . . . . . . . . . . . . . . . . . . . . Salvage Created 22591 | . 729 . 1690 987 848 1671 917 63 399 339 430 389 123 349 961 374 495 748 626 349 1299 520 1326 478 530 2589 3362 Parts 1127 | . 46 . 103 60 40 106 47 4 14 14 15 27 9 23 28 26 18 32 32 18 60 24 57 20 25 117 162 Haulers Intercepted 7 | . 2 . 4 1 . . . . . . . . . . . . . . . . . . . . . . . Recyclers Shooed 11 | . 3 . 1 . . . 1 . 1 . 1 . . . . . . . . . . . . . . 4 . Parts Field Recycled . | . . . . . . . . . . . . . . . . . . . . . . . . . . . . Retrieved Matter . | . . . . . . . . . . . . . . . . . . . . . . . . . . . . Parts Self-Destructed . | . . . . . . . . . . . . . . . . . . . . . . . . . . . . Prevented . | . . . . . . . . . . . . . . . . . . . . . . . . . . . . Kills | -11 -10 -10 -9 -8 -8 -8 -8 -8 -7 -7 -6 -6 -6 -6 -6 -5 -5 -5 -5 -5 -5 -4 -4 -4 -4 -3 -3 ------- Run | Jun Mat Min Mat Mat Gar Mat Sto Gar Fac Gar Fac Ext Cet Arc Hub Fac Gar Fac Gar Fac Gar Fac Gar Fac Gar Res Arm Combat Hostiles Destroyed 397 | . 11 . 36 19 20 33 21 3 9 9 4 8 . 1 17 8 15 13 11 11 18 8 19 8 12 27 56 Melee 4 | . . . 1 . . 1 . . . . . . . . . . . . . . . . . . . . 2 Guns 181 | . 9 . 19 6 8 14 6 . 4 4 2 5 . 1 10 1 5 3 3 1 4 8 18 8 10 12 20 Cannons 137 | . . . 10 10 3 9 12 2 5 5 2 3 . . 5 3 5 10 5 4 14 . 1 . 2 11 16 AOE 63 | . 1 . 5 3 8 8 3 1 . . . . . . 2 3 5 . 2 6 . . . . . . 16 Classes Destroyed 23 | . 6 . 4 1 2 3 . 1 . . . . . . 1 1 2 . 1 . . . . . . . 1 Worker 12 | . . . 2 . . 4 . . . . 1 . . . . . . 2 . . . . . . . 3 . Builder 4 | . . . . . . 1 . . . . . . . . . 1 . . . 1 . . . . . 1 . Tunneler 1 | . . . . . . . . . . . . . . . . 1 . . . . . . . . . . . Hauler 7 | . 2 . 4 1 . . . . . . . . . . . . . . . . . . . . . . . Recycler 10 | . 2 . 1 . . 1 . . . . 2 . . . . 1 . . . . . . . . . 3 . Mechanic 5 | . . . . 1 . . 1 . . . . . . . 1 . . . . . . . . . . . 2 Operator 16 | . 1 . 3 1 . 2 . . . . . 1 . 8 . . . . . . . . . . . . . Watcher 16 | . 3 . 4 2 . 5 1 . . . . . . . . . . . . . . . . . . . 1 Swarmer 69 | . 6 . 6 3 11 4 . 1 . 3 . 2 . . . 4 5 1 3 7 1 1 5 1 4 1 . Cutter 8 | . . . . . . . . . . . . . . . . . 1 . . . 3 . . . . . 4 Saboteur 5 | . . . . . . . . . . . . . . . . . . . . . . . . . . . 5 Grunt 136 | . 5 . 19 9 4 15 11 1 8 2 2 1 . . 14 . 4 4 3 1 6 1 5 1 3 . 17 Brawler 10 | . . . 2 . . . . . . . . . . . . . 1 1 . . . 1 . 1 . 2 2 Duelist 14 | . . . 1 . . 1 1 . . 1 1 . . . . . . . . . . 1 . . . 5 3 Protector 1 | . . . . . . 1 . . . . . . . . . . . . . . . . . . . . . Sentry 60 | . . . 8 7 3 8 9 . . 3 . 2 . 1 1 . 2 1 2 1 3 1 4 . 2 1 1 Demolisher 4 | . . . . . . . . . . . . . . . 1 . . . . . . . . . . 2 1 Specialist 18 | . . . . . 1 2 . . . . . . . . . . . . . 1 . . . . . 4 10 Hunter 26 | . . . . . 1 1 . . . . 1 2 . . 1 . . 1 . . 3 1 2 3 . 6 4 Programmer 45 | . . . . . . . . 1 1 1 . . . . . 4 1 5 3 1 2 2 2 2 3 9 8 Heavy 2 | . . . . . . 1 . . . . . . . . . . . . . . . . . . . . 1 Behemoth 2 | . . . . . . . . . . . . . . . . . 1 . . . . . 1 . . . . Executioner 1 | . . . . . . . . . . . . . . . . . . . 1 . . . . . . . . Thug 1 | . . . . . . . . . . . . . 1 . . . . . . . . . . . . . . Savage 1 | . . . . . . . . . . . . 1 . . . . . . . . . . . . . . . Infiltrator 1 | . . . . . . . . . . . . . . . . . . 1 . . . . . . . . . Best Kill Streak 15 | . 3 . 11 3 5 6 5 1 3 3 3 2 . 2 5 6 4 4 4 3 10 2 5 2 3 6 15 Combat Bots Only 14 | . 3 . 10 3 5 5 5 1 3 3 2 2 . 1 4 4 4 3 4 3 10 2 5 2 3 5 14 Max Kills in Single Turn 5 | . 1 . 3 2 3 3 2 1 1 2 2 2 1 1 2 5 3 2 3 3 2 2 2 1 2 2 3 Gunslinging 1 | . . . . . . . . . . . . 1 . . . . . . . . . 1 1 . 1 . . Exploded 3 | . 1 . 3 2 3 2 2 1 . . . . . . 1 3 3 . 2 3 . . . . . . 3 Melee 1 | . . . 1 . . 1 . . . . . . . . . . . . . . . . . . . . 1 Uniques/NPCs Destroyed 1 | . . . . . . . . . . . . . 1 . . . . . . . . . . . . . . A7 (-6/Cetus) Combat | -11 -10 -10 -9 -8 -8 -8 -8 -8 -7 -7 -6 -6 -6 -6 -6 -5 -5 -5 -5 -5 -5 -4 -4 -4 -4 -3 -3 -------- Run | Jun Mat Min Mat Mat Gar Mat Sto Gar Fac Gar Fac Ext Cet Arc Hub Fac Gar Fac Gar Fac Gar Fac Gar Fac Gar Res Arm Damage Taken 33044 | . 271 9 2255 1263 1189 2023 899 97 358 1016 487 620 110 22 1013 1096 567 1462 427 623 1346 82 1687 454 440 4874 8354 Core 3438 | . 33 3 295 201 155 117 46 18 63 54 61 63 . . 84 78 31 185 70 128 127 7 186 82 46 462 843 Absorbed by Shields 3378 | . . . . . 22 . . 16 . . . 60 . . 667 . . 20 327 262 79 35 625 375 306 440 144 Reduced by Siege Mode 525 | . . . . . . . . . . . . . . . . 61 71 40 . . . . 55 . 11 30 257 Redirected to Shielding 161 | . . . . . . . . . . . . 3 . . 46 . 7 . . . . . 55 . . . 50 Regen/Repaired (Parts) 8518 | . . . 100 . . 395 281 . . . 512 350 49 101 274 884 105 1427 51 848 245 276 458 40 73 1896 153 Core Remaining (%) 60 | 100 . 85 26 . . . . 2 . 83 . . . . 75 . . . . . 38 . . . 72 . . Volleys Fired 1627 | . 58 . 114 81 75 103 61 14 19 43 49 62 12 32 52 65 57 84 46 74 75 26 79 30 35 153 128 Largest 3 | . 2 . 2 2 2 2 2 2 3 3 3 3 3 3 3 3 3 3 3 3 3 3 3 3 3 3 3 Hottest 305 | . 100 . 100 93 129 141 73 73 137 137 184 188 188 188 190 205 190 186 186 186 186 94 172 113 133 225 305 Shots Fired 3187 | . 104 . 224 158 140 196 114 20 57 88 81 103 25 64 139 104 102 126 91 100 151 51 185 69 69 303 323 Gun 1904 | . 101 . 161 80 119 123 53 8 38 58 32 46 25 64 92 46 24 23 45 10 52 39 162 59 56 197 191 Cannon 988 | . . . 60 76 18 66 57 10 19 30 29 20 . . 47 56 60 75 27 56 88 . 9 1 5 57 122 Launcher 39 | . . . 2 2 3 7 4 2 . . . . . . . . 4 . . 2 . . . 1 . 2 10 Special 256 | . 3 . 1 . . . . . . . 20 37 . . . 2 14 28 19 32 11 12 14 8 8 47 . Kinetic 1626 | . 9 . 220 80 113 105 110 18 38 81 45 43 12 32 72 24 48 33 42 26 81 28 103 40 45 141 37 Thermal 1083 | . 3 . 2 76 24 84 . . 19 7 16 23 13 32 67 78 36 65 30 40 59 11 68 20 16 44 250 Explosive 36 | . . . 2 2 3 7 1 2 . . . . . . . . 4 . . 2 . . . 1 . 2 10 Electromagnetic 190 | . 92 . . . . . 3 . . . . . . . . . . . . . . . . . . 69 26 Robot Hit Streak 39 | . 10 . 20 16 17 39 15 3 9 6 17 17 7 16 24 16 12 12 20 12 24 28 33 13 12 21 29 Robot Miss Streak 7 | . 7 . 4 5 2 5 2 2 2 2 2 4 1 3 3 2 3 4 2 2 3 3 5 3 2 2 4 Penetration Max 2 | . . . . . . . . . . 1 1 1 . 1 1 . 1 1 1 1 1 1 . 1 1 2 1 Secondary Targets 16 | . 2 . 1 . 2 . . . . . . 1 . . . . . . . . . 1 2 . 1 6 . Max Gunslinging Chain 1 | . 1 . 1 . 1 . . . . . . 1 . . . . . . . . . 1 1 . 1 1 . Shots Hit Robots 2125 | . 59 . 176 107 106 147 86 7 37 56 53 71 20 44 103 58 63 65 66 57 80 36 125 46 40 219 198 Core Hits 901 | . 27 . 73 44 44 73 37 3 18 14 15 20 9 18 39 14 26 21 26 19 41 17 50 20 16 92 125 Critical Kills 46 | . . . 1 . 1 1 1 . . 1 . . . . 4 . 2 2 4 1 8 3 2 3 2 8 2 Critical Parts Destroyed 51 | . . . 1 . 2 . 1 . . . . 2 . 3 4 3 . 3 3 1 5 3 1 2 2 14 1 Critical Strikes 138 | . 2 . 5 . 5 4 4 . 3 3 . 2 1 6 9 5 4 7 8 3 13 8 9 6 5 22 4 Burn 19 | . . . . . 2 3 . . 1 . . . 1 3 1 1 . . 1 . . 2 2 1 1 . . Meltdown 2 | . . . . . . . . . . . . . . . . . . . . . . . . . . . 2 Destroy 100 | . . . . . 3 1 2 . . 1 . 2 . 3 8 4 3 5 7 3 13 6 7 5 4 22 1 Blast 13 | . . . 3 . . . 2 . 2 2 . . . . . . 1 2 . . . . . . . . 1 Corrupt 2 | . 2 . . . . . . . . . . . . . . . . . . . . . . . . . . Smash 2 | . . . 2 . . . . . . . . . . . . . . . . . . . . . . . . Melee Attacks 72 | . . . 18 1 1 20 . 1 3 26 2 . . . . . . . . . . . . . . . . Impact 47 | . . . 18 1 1 15 . 1 3 8 . . . . . . . . . . . . . . . . . Slashing . | . . . . . . . . . . . . . . . . . . . . . . . . . . . . Piercing . | . . . . . . . . . . . . . . . . . . . . . . . . . . . . Sneak Attacks 13 | . . . 3 . . 4 . . . 4 2 . . . . . . . . . . . . . . . . Combat Hostiles . | . . . . . . . . . . . . . . . . . . . . . . . . . . . . Follow-up Attacks . | . . . . . . . . . . . . . . . . . . . . . . . . . . . . Damage Inflicted 57606 | . 944 . 3320 2091 2300 3902 2093 254 926 1220 1067 1134 536 1263 3245 2083 2228 1602 1498 1315 2253 754 2920 1160 1131 6181 10186 Guns 31422 | . 850 . 1815 835 1355 1592 774 75 582 709 611 629 536 1263 1958 956 558 424 818 284 1000 754 2800 1144 935 4151 4014 Cannons 17689 | . . . 743 1069 292 1221 1107 127 344 511 456 505 . . 1048 641 1350 1010 408 528 1253 . 120 . 196 1486 3274 Explosions 7817 | . 94 . 283 187 653 987 212 52 . . . . . . 239 443 320 153 272 503 . . . . . 536 2883 Melee 581 | . . . 479 . . 102 . . . . . . . . . . . . . . . . . . . . . Ramming 97 | . . . . . . . . . . . . . . . . 43 . 15 . . . . . 16 . 8 15 Kinetic 26571 | . 82 . 2558 835 1255 1252 1881 202 676 1170 762 836 278 624 1558 534 1208 653 608 439 1224 583 1905 710 940 2974 824 Thermal 21367 | . 94 . . 1069 392 1561 13 . 250 50 305 298 258 639 1687 1063 769 879 890 373 1029 171 1015 434 191 1622 6315 Explosive 6144 | . . . 283 187 653 987 36 52 . . . . . . . 443 251 55 . 503 . . . . . 74 2620 Electromagnetic 2846 | . 768 . . . . . 163 . . . . . . . . . . . . . . . . . . 1503 412 Impact 581 | . . . 479 . . 102 . . . . . . . . . . . . . . . . . . . . . Slashing . | . . . . . . . . . . . . . . . . . . . . . . . . . . . . Piercing . | . . . . . . . . . . . . . . . . . . . . . . . . . . . . Highest Corruption 27 | . . . . . 1 1 1 1 2 3 . . . . 27 6 . 3 . 1 . . 1 . . 12 25 Average Corruption 4 | . . . . . 1 1 1 1 1 2 . . . . 12 4 . 1 . 1 . . 1 . . 5 16 Corruption Purged 33 | . . . . . . . . . . . . . . . . 8 . 5 . 1 . . 1 . . 17 1 Corruption Blocked . | . . . . . . . . . . . . . . . . . . . . . . . . . . . . Effects 179 | . . . . . 2 16 10 2 1 23 . . . . 1 12 . 5 . . . . . . . 35 72 Message Errors 31 | . . . . . . 3 2 1 . 8 . . . . . 3 . 1 . . . . . . . 4 9 Matter Fused 48 | . . . . . 1 5 2 . . 6 . . . . 1 4 . 1 . . . . . . . 9 19 Heat Flow Errors 19 | . . . . . . 3 2 . 1 3 . . . . . 1 . . . . . . . . . 6 3 Energy Discharges 12 | . . . . . . 1 . . . 1 . . . . . . . 1 . . . . . . . 5 4 Parts Rejected 2 | . . . . . . . . . . . . . . . . 1 . . . . . . . . . . 1 Parts Fused 3 | . . . . . . 1 . . . 1 . . . . . . . . . . . . . . . . 1 Data Loss (minor) 20 | . . . . . 1 2 3 . . 3 . . . . . 1 . 2 . . . . . . . 1 7 Data Loss (major) 6 | . . . . . . . . 1 . . . . . . . . . . . . . . . . . 3 2 Misfires 3 | . . . . . . . . . . . . . . . . . . . . . . . . . . . 3 Alerts 8 | . . . . . . 1 . . . . . . . . . 1 . . . . . . . . . 3 3 Weapon Failures 27 | . . . . . . . 1 . . 1 . . . . . 1 . . . . . . . . . 4 20 Overload Shots 1 | . . . . . . . . . . . . . . . . . . 1 . . . . . . . . . Overflow Damage 764 | . 19 . 93 5 33 54 4 . . 8 14 . . . 16 169 49 38 . 97 . . . . 6 1 158 Projectiles 309 | . . . 13 5 . . 4 . . 8 14 . . . 16 33 49 21 . 16 . . . . 6 1 123 Explosions 375 | . 19 . . . 33 54 . . . . . . . . . 136 . 17 . 81 . . . . . . 35 Melee 80 | . . . 80 . . . . . . . . . . . . . . . . . . . . . . . . Knockbacks 63 | . . . 8 . . . 10 1 4 4 10 6 . . 4 . 4 4 1 3 2 . . . . 1 1 Impact 1 | . . . 1 . . . . . . . . . . . . . . . . . . . . . . . . Kinetic 59 | . . . 7 . . . 10 1 4 4 9 4 . . 4 . 4 4 1 3 2 . . . . 1 1 Secondary 3 | . . . . . . . . . . . 1 2 . . . . . . . . . . . . . . . Self-Inflicted Damage 504 | . 36 . . 29 102 . . 10 . . . . . . . . . 33 17 . . . . . . . 277 Shots 12 | . 1 . . 1 2 . . 1 . . . . . . . . . 1 1 . . . . . . . 5 Rammed 10 | . . . . . . . . . . . . . . . . 4 . 2 . . . . . 1 . 2 1 Targets Rammed 11 | . . . . . . . . . . . . . . . . 4 . 2 . . . . . 1 . 2 2 Kicked . | . . . . . . . . . . . . . . . . . . . . . . . . . . . . Crushed 1 | . . . . . . . . . . . . . . . . . . . . . . . . . . . 1 Highest Temperature 373 | . 111 . 33 30 104 104 170 . 247 303 324 315 54 27 347 111 18 176 56 373 165 54 108 117 348 267 372 Average Temperature 67 | . 56 . 17 11 19 23 28 . 54 78 91 58 29 18 82 31 10 49 23 123 49 27 40 42 82 74 112 Received Heat Transfer 6614 | . 42 . 987 639 324 504 450 . 153 213 153 120 . . 323 9 72 156 59 58 309 9 173 15 34 226 1586 Effects 4 | . . . . . . . . . . . . . . . . . . . . 4 . . . . . . . Energy Bleed 1 | . . . . . . . . . . . . . . . . . . . . 1 . . . . . . . Matter Decay 1 | . . . . . . . . . . . . . . . . . . . . 1 . . . . . . . Short Circuit 2 | . . . . . . . . . . . . . . . . . . . . 2 . . . . . . . Siege Activations 19 | . . . . . . . . . . . . . . . . 2 5 2 . . 1 . 3 . 1 2 3 Total Turns 374 | . . . . . . . . . . . . . . . . 131 64 23 . . 5 . 45 . 16 29 61 Longest Duration 123 | . . . . . . . . . . . . . . . . 123 25 14 . . 5 . 24 . 16 16 30 Robots Corrupted 6 | . 1 . . . . . . . . . . . . . . . . . . . . . . . . 5 . Combat Hostiles 5 | . 1 . . . . . . . . . . . . . . . . . . . . . . . . 4 . Parts Fried 24 | . 4 . 1 . . . . . . . . . . . . . . . . . . . . . . 15 4 Impact Corruptions 3 | . . . 3 . . . . . . . . . . . . . . . . . . . . . . . . Robots Melted 6 | . . . . . 1 1 . . . . . . . . . 1 . . 1 . . . . . . . 2 Combat Hostiles 6 | . . . . . 1 1 . . . . . . . . . 1 . . 1 . . . . . . . 2 Parts Melted 64 | . . . 1 2 3 9 . . . 1 . 1 1 2 2 2 . 1 6 1 1 1 5 2 . 1 22 Heat Transferred 24895 | . 200 . . 1924 851 3251 50 . 518 74 407 407 444 1147 1569 851 37 550 1196 50 . 550 2111 901 500 1237 6070 Parts Sabotaged 6 | . . . . . . . . . . . . . . . . . . . . . . . . . . 3 3 Parts Stolen . | . . . . . . . . . . . . . . . . . . . . . . . . . . . . Parts Stripped . | . . . . . . . . . . . . . . . . . . . . . . . . . . . . Power Chain Reactions 11 | . 3 . . . . . 1 . . . . . . . 2 . 1 1 1 . . . . . . 1 1 Missiles Intercepted . | . . . . . . . . . . . . . . . . . . . . . . . . . . . . Alert | -11 -10 -10 -9 -8 -8 -8 -8 -8 -7 -7 -6 -6 -6 -6 -6 -5 -5 -5 -5 -5 -5 -4 -4 -4 -4 -3 -3 ------- Run | Jun Mat Min Mat Mat Gar Mat Sto Gar Fac Gar Fac Ext Cet Arc Hub Fac Gar Fac Gar Fac Gar Fac Gar Fac Gar Res Arm Peak Influence 1965 | . 227 36 668 327 1059 658 634 927 690 1217 782 706 643 466 1846 906 1074 607 1237 1855 1965 1153 1465 1613 1811 1336 1581 Initial 1172 | . . 36 . 232 141 516 241 412 486 389 638 373 356 177 9 889 270 485 364 648 1172 1029 587 768 1129 962 495 Average 662 | . 106 16 375 139 680 384 351 759 563 799 484 356 539 271 831 365 605 345 976 889 1778 724 1085 1129 1584 1161 1077 Maximum Alert Level 5 | . 1 . 2 1 3 2 2 3 2 4 3 3 2 2 5 3 3 2 4 5 5 4 4 5 5 4 4 Low Security (%) 17 | 100 95 100 27 81 7 15 7 . . . 1 13 . 35 26 11 . 17 . 11 . . . . . . . Level 1 19 | . 4 . 29 18 9 34 61 . . 2 35 45 10 49 9 56 16 38 2 13 . 6 . . . . . Level 2 24 | . . . 42 . 34 50 30 30 100 28 56 37 89 14 11 22 53 44 11 10 . 26 14 1 . . 8 Level 3 17 | . . . . . 48 . . 69 . 54 6 2 . . 12 9 29 . 64 21 . 64 39 45 . 27 48 Level 4 15 | . . . . . . . . . . 15 . . . . 21 . . . 21 31 28 2 46 48 41 72 42 Level 5 5 | . . . . . . . . . . . . . . . 17 . . . . 10 71 . . 4 58 . . High Security . | . . . . . . . . . . . . . . . . . . . . . . . . . . . . Max Security . | . . . . . . . . . . . . . . . . . . . . . . . . . . . . Squads Dispatched 126 | . 2 . 5 3 . 4 2 . 5 . 9 2 . . 11 8 . 12 . 15 . 7 . 10 . 18 13 Investigation 21 | . 2 . 1 2 . . . . 1 . 1 . . . 1 2 . 4 . 4 . 1 . 1 . 1 . Extermination 31 | . . . . . . . . . 2 . 3 . . . 1 3 . 6 . 2 . 2 . 3 . 6 3 Reinforcement 35 | . . . 3 1 . 3 2 . . . 3 2 . . 3 . . 2 . 6 . 1 . . . 3 6 Assault 30 | . . . 1 . . 1 . . . . 2 . . . 5 . . . . 3 . 3 . 3 . 8 4 Garrison 9 | . . . . . . . . . 2 . . . . . 1 3 . . . . . . . 3 . . . Intercept . | . . . . . . . . . . . . . . . . . . . . . . . . . . . . Searches Triggered . | . . . . . . . . . . . . . . . . . . . . . . . . . . . . Construction Impeded 1 | . . . . . . . . . . . . . . . . . . . . . . . . . . 1 . Haulers Reinforced 1 | . . . . . . . . . . . . . . . . . . . . 1 . . . . . . . Active Scanning Responses . | . . . . . . . . . . . . . . . . . . . . . . . . . . . . Cargo Convoy Interrupts 1 | . . . . . . . . . . . 1 . . . . . . . . . . . . . . . . Alert ID Control Effect 27 | . . . . . . . . . . . . . . . . . . . . . . . 1 3 6 17 . Stealth | -11 -10 -10 -9 -8 -8 -8 -8 -8 -7 -7 -6 -6 -6 -6 -6 -5 -5 -5 -5 -5 -5 -4 -4 -4 -4 -3 -3 --------- Run | Jun Mat Min Mat Mat Gar Mat Sto Gar Fac Gar Fac Ext Cet Arc Hub Fac Gar Fac Gar Fac Gar Fac Gar Fac Gar Res Arm Distress Signals 33 | . 2 . 5 3 . 6 3 . 1 . . 1 . . . . . . 1 3 . 1 1 1 . 2 3 Communications Jammed 1226 | . . . . . . . . . . . 305 138 362 . 26 20 . 25 . 59 35 12 4 118 . 97 25 Distress Signals 1226 | . . . . . . . . . . . 305 138 362 . 26 20 . 25 . 59 35 12 4 118 . 97 25 Times Spotted 939 | . 23 . 51 35 28 46 22 15 11 24 34 31 10 16 58 22 30 49 29 52 36 30 39 43 25 99 81 Peak Tracking Total 13 | . 5 . 7 5 5 5 5 4 5 6 5 4 5 3 5 4 7 4 4 5 11 5 5 6 6 11 13 Tactical Retreats 32 | . 1 . 3 2 3 4 1 1 . 2 1 2 . . 1 2 . 1 . 1 1 . 3 . 1 2 . Traps | -11 -10 -10 -9 -8 -8 -8 -8 -8 -7 -7 -6 -6 -6 -6 -6 -5 -5 -5 -5 -5 -5 -4 -4 -4 -4 -3 -3 ------- Run | Jun Mat Min Mat Mat Gar Mat Sto Gar Fac Gar Fac Ext Cet Arc Hub Fac Gar Fac Gar Fac Gar Fac Gar Fac Gar Res Arm Traps Triggered 35 | . . . 1 1 8 . 2 2 . 8 . 2 . . 1 . 1 3 1 . 2 . 1 1 1 . . Indirectly . | . . . . . . . . . . . . . . . . . . . . . . . . . . . . Trap Hack Attempts . | . . . . . . . . . . . . . . . . . . . . . . . . . . . . Triggered . | . . . . . . . . . . . . . . . . . . . . . . . . . . . . Disarmed 43 | . . . . . . . . . . . 4 4 . . . . . 6 . 25 . . . . . 4 . Reprogrammed 25 | . 6 . . . . 2 . . . . . . . . . . . 12 . 5 . . . . . . . Reused 9 | . 1 . . . 3 1 . . . . . . . . . . . 2 . 2 . . . . . . . Traps Extracted . | . . . . . . . . . . . . . . . . . . . . . . . . . . . . Installed 9 | . . 5 . . 4 . . . . . . . . . . . . . . . . . . . . . . Triggered 10 | . 1 . . . 3 1 . . . . 1 . . . . . . 2 . 2 . . . . . . . Most Traps Carried 4 | . . . . . 4 . . . . . . . . . . . . . . . . . . . . . . Machines | -11 -10 -10 -9 -8 -8 -8 -8 -8 -7 -7 -6 -6 -6 -6 -6 -5 -5 -5 -5 -5 -5 -4 -4 -4 -4 -3 -3 ---------- Run | Jun Mat Min Mat Mat Gar Mat Sto Gar Fac Gar Fac Ext Cet Arc Hub Fac Gar Fac Gar Fac Gar Fac Gar Fac Gar Res Arm Machines Disabled 97 | . 3 . 1 2 5 1 1 2 2 4 1 2 . 5 10 6 3 9 3 8 5 3 6 5 3 1 6 Max in Single Turn 3 | . 1 . 1 1 1 1 1 1 1 1 1 1 . 1 1 3 1 3 1 . 1 1 1 . 1 1 1 Garrison Access 9 | . . . . . . . . . . . . . . . 2 2 . . . 3 . . . . . 2 . Garrison Relay 22 | . . . . . 4 . . 2 . 4 . . . . . . 2 . 3 . 2 . 2 . 3 . . Network Hub 3 | . . . . . . . . . . . . . . . 3 . . . . . . . . . . . . Machines Repaired . | . . . . . . . . . . . . . . . . . . . . . . . . . . . . Machines Sabotaged . | . . . . . . . . . . . . . . . . . . . . . . . . . . . . Overloaded Fab Kills . | . . . . . . . . . . . . . . . . . . . . . . . . . . . . Hacking | -11 -10 -10 -9 -8 -8 -8 -8 -8 -7 -7 -6 -6 -6 -6 -6 -5 -5 -5 -5 -5 -5 -4 -4 -4 -4 -3 -3 --------- Run | Jun Mat Min Mat Mat Gar Mat Sto Gar Fac Gar Fac Ext Cet Arc Hub Fac Gar Fac Gar Fac Gar Fac Gar Fac Gar Res Arm Machines Accessed 192 | . 9 . 9 8 3 14 7 2 3 3 10 10 . . 7 16 3 23 2 25 1 6 1 11 2 15 2 Terminals 110 | . 7 . 7 5 3 10 5 2 1 3 4 8 . . 6 8 3 11 2 10 1 1 1 4 2 6 . Fabricators 18 | . . . . . . . . . . . 2 . . . . 2 . 4 . 4 . 1 . 3 . 1 1 Repair Stations 20 | . . . 1 . . 2 1 . . . 3 . . . . 2 . 3 . 3 . 2 . 1 . 2 . Recycling Units 18 | . 2 . . . . . . . . . 1 2 . . . . . 3 . 3 . 1 . 1 . 4 1 Scanalyzers 11 | . . . 1 2 . 2 . . 1 . . . . . . 1 . 1 . 2 . . . 1 . . . Garrison Access 15 | . . . . 1 . . 1 . 1 . . . . . 1 3 . 1 . 3 . 1 . 1 . 2 . Total Hacks 1027 | . 30 . 31 34 7 44 12 5 7 10 53 29 . . 24 109 16 171 13 166 19 43 15 69 14 91 15 Successful 633 | . 19 . 14 24 3 32 7 2 4 3 38 23 . . 13 61 5 119 3 114 6 33 6 44 5 48 7 Failed 392 | . 10 . 16 10 4 12 5 3 3 7 15 6 . . 11 48 11 52 10 52 13 10 9 25 9 43 8 Catastrophic 66 | . 1 . 1 1 3 1 . 3 1 4 . . . . 1 12 4 1 6 8 1 1 1 5 1 10 . Database Lockouts 2 | . 1 . 1 . . . . . . . . . . . . . . . . . . . . . . . . Manual 496 | . 14 . 18 16 3 19 1 2 3 1 26 17 1 . 15 41 13 64 11 78 17 17 14 38 10 51 6 Terminals 608 | . 25 . 26 25 7 30 9 5 3 10 20 20 . . 20 63 16 83 13 88 19 15 15 36 14 46 . Fabricators 139 | . . . . . . . . . . . 13 . . . . 18 . 29 . 27 . 11 . 19 . 13 9 Repair Stations 88 | . . . 2 . . 8 2 . . . 13 . . . . 13 . 21 . 12 . 8 . 1 . 8 . Recycling Units 93 | . 5 . . . . . . . . . 7 9 . . . . . 18 . 18 . 5 . 4 . 21 6 Scanalyzers 61 | . . . 3 8 . 6 . . 3 . . . . . . 5 . 16 . 13 . . . 7 . . . Garrison Access 38 | . . . . 1 . . 1 . 1 . . . . . 4 10 . 4 . 8 . 4 . 2 . 3 . Terminal Hacks 228 | . 10 . 6 9 2 7 3 2 . 3 7 10 . . 4 24 4 42 3 46 6 7 4 14 4 11 . Part Schematic 10 | . 1 . . . . . . . . . 2 . . . . 1 . 4 . 1 . 1 . . . . . Robot Schematic 7 | . . . . . . . . . . . 1 . . . . 3 . 2 . 1 . . . . . . . Robot Analysis 6 | . . . 3 . . . . . . . . . . . . . . 2 . 1 . . . . . . . Prototype ID Bank 15 | . 2 . . . . . . . . . 1 . . . 1 3 . 2 . 3 . . . 2 . 1 . Open Door 9 | . . . . . . . 1 1 . 1 . 6 . . . . . . . . . . . . . . . Level Access Points 2 | . . . . . . . . . . . . . . . . . . 1 . 1 . . . . . . . Branch Access Points 8 | . 1 . . . . . . . . . 1 . . . . 1 . 1 . 1 . 1 . 1 . 1 . Emergency Access Points 8 | . . . . . 1 . . . . 1 . . . . . . 1 . 1 . 1 . 1 . 1 1 . Machine Index 2 | . . . . . . . . . . . . . . . . 1 . . . . . 1 . . . . . Terminal Index 8 | . 1 . 1 . . 1 . . . . 1 . . . . 1 . 1 . 1 . . . 1 . . . Fabricator Index 1 | . . . . . . . . . . . . . . . . . . 1 . . . . . . . . . Repair Station Index 2 | . . . . . . . . . . . . . . . . . . 1 . 1 . . . . . . . Recycling Unit Index 1 | . . . . . . . . . . . . . . . . . . 1 . . . . . . . . . Scanalyzer Index 3 | . . . . . . . . . . . . . . . . 1 . . . 1 . . . 1 . . . Garrison Index 4 | . . . . . . . . . . . . . . . 1 . . 1 . 1 . . . 1 . . . Alert Level 3 | . 1 . . 2 . . . . . . . . . . . . . . . . . . . . . . . Unreport Threat 35 | . . . . 1 . 1 . . . . . 2 . . . 5 1 4 . 6 3 3 2 3 1 3 . Locate Traps 21 | . 1 . 1 2 . 2 1 . . . . 1 . . . 2 . 4 . 4 . . . 1 . 2 . Disarm Traps 11 | . . . . . . . . . . . 1 1 . . . . . 2 . 6 . . . . . 1 . Reprogram Traps 6 | . 1 . . . . 1 . . . . . . . . . . . 2 . 2 . . . . . . . Dispatch Records 1 | . . . . . . . . . . . . . . . . . . . . . . . . 1 . . . Investigation Status 2 | . . . . . . . . . . . . . . . . . . . . 2 . . . . . . . Reinforcement Status 2 | . . . . . . . . . . . . . . . . 1 . 1 . . . . . . . . . Assault Status 2 | . . . . . . . . . . . . . . . 1 . . . . . . . . . . 1 . Recall Investigation 4 | . . . . . . . . . . . . . . . . . . 2 . 2 . . . . . . . Recall Extermination 3 | . . . . . . . . . . . . . . . . 1 . 2 . . . . . . . . . Recall Reinforcements 2 | . . . . . . . . . . . . . . . . . . 1 . 1 . . . . . . . Recall Assault 4 | . . . . . . . . . . . . . . . . . . . . 2 . . . 2 . . . Hauler Manifests 6 | . 1 . 1 1 . . . . . . . . . . . 2 . 1 . . . . . . . . . Registered Components 1 | . . . . . . . . . . . . . . . . . . 1 . . . . . . . . . Registered Prototypes 2 | . . . . . . . . . . . . . . . . . . 1 . 1 . . . . . . . Zone Layout 25 | . 1 . . 3 . 2 1 . . . . . . . 1 2 . 4 . 8 . 1 . 1 . 1 . Garrison Registry 6 | . . . . . 1 . . . . . . . . . . . 1 . 1 . 1 . 1 . 1 . . Patrol Navigation 5 | . . . . . . . . 1 . . . . . . . . 1 . 1 . 1 . . . 1 . . Security Stations 1 | . . . . . . . . . . 1 . . . . . . . . . . . . . . . . . Fabricator Hacks 53 | . . . . . . . . . . . 7 . . . . 4 . 10 . 8 . 6 . 7 . 9 2 Network Status 8 | . . . . . . . . . . . 1 . . . . 1 . . . 1 . 2 . 1 . 1 1 Load Schematic 20 | . . . . . . . . . . . 3 . . . . 1 . 5 . 3 . 2 . 2 . 4 . Build 25 | . . . . . . . . . . . 3 . . . . 2 . 5 . 4 . 2 . 4 . 4 1 Repair Station Hacks 66 | . . . 2 . . 8 2 . . . 7 . . . . 10 . 16 . 10 . 6 . . . 5 . Scan Component 34 | . . . 1 . . 4 1 . . . 4 . . . . 5 . 8 . 5 . 3 . . . 3 . Repair 32 | . . . 1 . . 4 1 . . . 3 . . . . 5 . 8 . 5 . 3 . . . 2 . Recycling Unit Hacks 22 | . 1 . . . . . . . . . 2 2 . . . . . 6 . 5 . 1 . 1 . 3 1 Process 1 | . . . . . . . . . . . . . . . . . . 1 . . . . . . . . . Report Inventory 11 | . . . . . . . . . . . . . . . . . . 3 . 4 . 1 . 1 . 1 1 Retrieve Matter 3 | . . . . . . . . . . . 1 . . . . . . 1 . . . . . . . 1 . Retrieve Components 7 | . 1 . . . . . . . . . 1 2 . . . . . 1 . 1 . . . . . 1 . Scanalyzer 46 | . . . 2 7 . 6 . . 2 . . . . . . 4 . 10 . 11 . . . 4 . . . Insert Component 22 | . . . 1 3 . 3 . . 2 . . . . . . 2 . 5 . 4 . . . 2 . . . Analyze 24 | . . . 1 4 . 3 . . . . . . . . . 2 . 5 . 7 . . . 2 . . . Garrison Access Hacks 22 | . . . . 1 . . 1 . 1 . . . . . 1 6 . 1 . 5 . 1 . 2 . 3 . Unlock Access 9 | . . . . 1 . . 1 . 1 . . . . . 1 1 . 1 . 1 . 1 . 1 . . . Seal Access 6 | . . . . . . . . . . . . . . . . 2 . . . 2 . . . . . 2 . Coupler Status 7 | . . . . . . . . . . . . . . . . 3 . . . 2 . . . 1 . 1 . Unauthorized Hacks 196 | . 8 . 4 7 1 11 1 . 1 . 15 11 . . 8 13 1 34 . 29 . 12 2 16 1 17 4 Terminals 85 | . 7 . 4 7 1 11 1 . 1 . 5 5 . . 8 5 1 9 . 7 . 1 2 3 1 6 . Track 22 | . 1 . 1 1 1 3 . . . . 2 1 . . 2 . . 4 . 3 . . 1 1 . 1 . Assimilate 17 | . 4 . . 1 . 5 . . . . . 1 . . 3 1 . 2 . . . . . . . . . Botnet 30 | . 1 . 2 3 . 2 1 . . . 2 2 . . 2 3 1 2 . 3 . . 1 1 1 3 . Operators 16 | . 1 . 1 2 . 1 . . 1 . 1 1 . . 1 1 . 1 . 1 . 1 . 1 . 2 . Fabricators 49 | . . . . . . . . . . . 5 . . . . 3 . 13 . 10 . 4 . 9 . 2 3 Report 7 | . . . . . . . . . . . . . . . . . . 3 . 1 . 1 . 2 . . . Prioritize 17 | . . . . . . . . . . . 2 . . . . 1 . 4 . 4 . 1 . 3 . 1 1 Liberate 17 | . . . . . . . . . . . 2 . . . . 1 . 4 . 4 . 1 . 3 . 1 1 Haulers 8 | . . . . . . . . . . . 1 . . . . 1 . 2 . 1 . 1 . 1 . . 1 Repair Stations 7 | . . . . . . . . . . . 1 . . . . 1 . 1 . 1 . 1 . 1 . 1 . Mechanics 7 | . . . . . . . . . . . 1 . . . . 1 . 1 . 1 . 1 . 1 . 1 . Recycling Units 46 | . 1 . . . . . . . . . 4 6 . . . . . 10 . 9 . 4 . 3 . 8 1 Monitor 11 | . . . . . . . . . . . 1 2 . . . . . 3 . 2 . 1 . 1 . 1 . Reject 15 | . . . . . . . . . . . 1 2 . . . . . 3 . 3 . 1 . 1 . 4 . Recyclers 5 | . . . . . . . . . . . 1 . . . . . . 1 . 1 . 1 . . . 1 . Mask 14 | . . . . . . . . . . . 1 2 . . . . . 3 . 3 . 1 . 1 . 2 1 Tunnel 1 | . 1 . . . . . . . . . . . . . . . . . . . . . . . . . . Scanalyzers . | . . . . . . . . . . . . . . . . . . . . . . . . . . . . Garrison Access 9 | . . . . . . . . . . . . . . . . 4 . 1 . 2 . 2 . . . . . Broadcast 1 | . . . . . . . . . . . . . . . . 1 . . . . . . . . . . . Decoy 3 | . . . . . . . . . . . . . . . . 1 . . . 1 . 1 . . . . . Reprogram 4 | . . . . . . . . . . . . . . . . 1 . 1 . 1 . 1 . . . . . Watchers 1 | . . . . . . . . . . . . . . . . 1 . . . . . . . . . . . Data Cores Recovered 3 | . 1 . . . . . . . . . . . . . 1 . . . . 1 . . . . . . . Used . | . . . . . . . . . . . . . . . . . . . . . . . . . . . . Hacking Detections 138 | . 8 . 8 7 3 14 4 2 2 3 9 5 . . 6 12 3 17 2 11 1 3 1 6 2 9 . Full Trace Events 14 | . 1 . . 1 . . . 1 . . 1 . . . 1 1 . 3 . 2 . 1 . 1 1 . . Feedback Events . | . . . . . . . . . . . . . . . . . . . . . . . . . . . . Feedback Blocked . | . . . . . . . . . . . . . . . . . . . . . . . . . . . . Robot Schematics Acquired 7 | . . . . . . . . . . . 1 . . . . 3 . 2 . 1 . . . . . . . Robots Built 41 | . . . . . . . . . . . 6 . . . . 2 . 8 . 9 . 3 . 5 . 8 . Authchips 12 | . . . . . . . . . . . 2 . . . . . . 2 . 1 . 2 . 1 . 4 . Time 1313 | . . . . . . . . . . . 77 . . . . 42 . 378 . 295 . 84 . 337 . 100 . Total Robot Build Rating 226 | . . . . . . . . . . . 24 . . . . 12 . 48 . 54 . 18 . 30 . 40 . Part Schematics Acquired 28 | . 1 . 1 2 . 3 . . . . 2 . . . . 3 . 8 . 5 . 1 . 2 . . . Parts Built 5 | . . . . . . . . . . . . . . . . 2 . . . . . . . 1 . . 2 Authchips . | . . . . . . . . . . . . . . . . . . . . . . . . . . . . Time 277 | . . . . . . . . . . . . . . . . 69 . . . . . . . 139 . . 69 Total Part Build Rating 45 | . . . . . . . . . . . . . . . . 18 . . . . . . . 9 . . 18 Parts Repaired 30 | . . . 1 . . 4 1 . . . 3 . . . . 5 . 6 . 5 . 3 . . . 2 . Time 1852 | . . . 32 . . 159 38 . . . 168 . . . . 369 . 457 . 290 . 217 . . . 122 . Parts Recycled . | . . . . . . . . . . . . . . . . . . . . . . . . . . . . Recycled Matter 12 | . . . . . . . . . . . . . . . . . . 12 . . . . . . . . . Retrieved Matter 169 | . . . . . . . . . . . . . . . . . . 12 . . . . . . . 157 . Retrieved Components 31 | . 10 . . . . . . . . . 7 3 . . . . . 2 . . . . . . . 9 . Parts Scanalyzed 21 | . . . 1 3 . 3 . . 1 . . . . . . 2 . 5 . 4 . . . 2 . . . Part Schematics Acquired 18 | . . . 1 2 . 3 . . . . . . . . . 2 . 4 . 4 . . . 2 . . . Parts Damaged . | . . . . . . . . . . . . . . . . . . . . . . . . . . . . Bothacking | -11 -10 -10 -9 -8 -8 -8 -8 -8 -7 -7 -6 -6 -6 -6 -6 -5 -5 -5 -5 -5 -5 -4 -4 -4 -4 -3 -3 ------------ Run | Jun Mat Min Mat Mat Gar Mat Sto Gar Fac Gar Fac Ext Cet Arc Hub Fac Gar Fac Gar Fac Gar Fac Gar Fac Gar Res Arm Used RIF Installer 9 | . . . . . 1 . . 1 . 1 . . . . . . 1 . 1 . 1 . 2 . 1 . . Coupler Efficiency 1 | . . . . . . . . . . . . . . . . . . . . . . . 1 . . . . Command Fork 2 | . . . . . . . . . . . . . . . . . 1 . . . 1 . . . . . . Signal Jammer 1 | . . . . . . . . . . 1 . . . . . . . . . . . . . . . . . Robot Detection 1 | . . . . . . . . . . . . . . . . . . . . . . . . . 1 . . Watcher Feeds 1 | . . . . . . . . 1 . . . . . . . . . . . . . . . . . . . Alert ID Control 1 | . . . . . . . . . . . . . . . . . . . . . . . 1 . . . . Autoassimilate 1 | . . . . . . . . . . . . . . . . . . . 1 . . . . . . . . Robots Hacked 137 | . . . . . . 2 . . . 11 11 5 . . . 2 8 14 6 21 6 5 3 7 5 31 . Non-combat 43 | . . . . . . 1 . . . . 7 2 . . . 2 . 7 . 8 . 3 . . 1 12 . Combat 94 | . . . . . . 1 . . . 11 4 3 . . . . 8 7 6 13 6 2 3 7 4 19 . Autoassimilated 7 | . . . . . . . . . . . . . . . . . . . . . 1 . . 1 2 3 . Robot Hacks Applied 158 | . . . . . . 5 . . . 11 16 7 . . . 2 8 20 6 24 5 8 3 6 4 33 . parse_system 7 | . . . . . . . . . . . 1 1 . . . . 2 1 1 . . . . . . 1 . find_chute 2 | . . . . . . . . . . . . . . . . 1 . . . . . 1 . . . . . deconstruct_machine 1 | . . . . . . . . . . . . . . . . . . 1 . . . . . . . . . ignore_repairs 17 | . . . . . . . . . . . 2 2 . . . 1 . 3 . 4 . . . . . 5 . find_fabricator 1 | . . . . . . . . . . . 1 . . . . . . . . . . . . . . . . drop_inventory 5 | . . . . . . . . . . . 2 . . . . . . 1 . . . . . . . 2 . find_recycling 2 | . . . . . . . . . . . . . . . . . . 1 . . . . . . . 1 . ignore_parts 5 | . . . . . . . . . . . . . . . . . . 1 . 1 . . . . . 3 . check_alert 1 | . . . . . . 1 . . . . . . . . . . . . . . . . . . . . . purge_threat 13 | . . . . . . 2 . . . . 3 1 . . . . . 1 . 3 . 3 . . . . . find_terminals 1 | . . . . . . . . . . . . . . . . . . . . . . 1 . . . . . block_reporting 2 | . . . . . . . . . . . 1 . . . . . . 1 . . . . . . . . . map_route 2 | . . . . . . . . . . . . . . . . . . . . . . . . . . 2 . emergency_deploy 1 | . . . . . . . . . . . . . . . . . . . . 1 . . . . . . . find_garrison 1 | . . . . . . . . . . . . . . . . . . 1 . . . . . . . . . link_complan 1 | . . . . . . . . . . . . . . . . . . . . 1 . . . . . . . spike_heat 1 | . . . . . . . . . . . . . . . . . . . . . . . 1 . . . . amplify_resonance 4 | . . . . . . . . . . . 1 . . . . . . 1 2 . . . . . . . . reboot_system 12 | . . . . . . . . . . 1 2 1 . . . . . 2 1 3 . . . 1 . 1 . overwrite_iff 27 | . . . . . . . . . . 2 . . . . . . 4 1 1 2 3 . . 1 3 10 . formatsys_low 11 | . . . . . . 1 . . . . 3 1 . . . . . . . 3 . 1 . . . 2 . formatsys_high 41 | . . . . . . 1 . . . 8 . 1 . . . . 2 5 1 6 2 2 2 4 1 6 . Relay Couplers Released 102 | . . . . . 15 . . 12 . 14 3 . . . 2 3 6 . 11 4 9 . 8 . 14 1 . Machine Destruction 96 | . . . . . 15 . . 9 . 14 . . . . 2 3 6 . 11 4 9 . 8 . 14 1 . Programmers 6 | . . . . . . . . 3 . . 3 . . . . . . . . . . . . . . . . Attached 42 | . . . . . . 2 . . . 5 4 1 . . . . 3 2 1 8 1 3 3 2 3 4 . Fabnet Peak Effective % . | . . . . . . . . . . . . . . . . . . . . . . . . . . . . Robots Rewired 36 | . . . . . . . . . . 4 . 16 . . . . . . 5 . 2 1 6 . . 2 . Allies Hacked 24 | . . . . . . . . . . . 3 2 . . . . 3 3 3 1 . 2 . 4 . 3 . Hacks Repelled 8 | . . . . . . . . . . . . . . . . . . 1 1 . . 1 1 . . 4 . Allies | -11 -10 -10 -9 -8 -8 -8 -8 -8 -7 -7 -6 -6 -6 -6 -6 -5 -5 -5 -5 -5 -5 -4 -4 -4 -4 -3 -3 -------- Run | Jun Mat Min Mat Mat Gar Mat Sto Gar Fac Gar Fac Ext Cet Arc Hub Fac Gar Fac Gar Fac Gar Fac Gar Fac Gar Res Arm Total Allies 244 | . 1 . . . . 4 10 1 . 14 12 29 5 . . 7 10 27 8 30 8 10 11 16 5 36 . Largest Group 25 | . 1 1 . . . 3 10 11 . 7 10 25 24 19 18 6 6 7 7 15 15 11 11 11 7 14 2 Highest-Rated Group 1052 | . 10 10 . . . 30 173 193 . 176 291 859 1052 868 848 224 228 290 366 664 632 481 499 609 464 766 157 Highest-Rated Ally 159 | . 10 10 . . . 15 29 29 . 32 47 159 159 96 96 89 95 95 119 137 148 141 119 137 137 116 116 Total Orders 252 | . 3 . . . . 9 18 2 7 9 42 10 8 8 13 5 6 9 7 19 13 5 22 6 17 14 . STAY 116 | . 2 . . . . 5 1 1 1 5 29 2 3 3 12 3 3 4 4 9 5 2 9 3 5 5 . ROAM 1 | . . . . . . . . . . . . . . . . . . . . . . . . . . 1 . FOLLOW 80 | . 1 . . . . 4 2 1 . 4 5 4 4 3 . 2 3 5 3 10 7 1 10 3 6 2 . AID 25 | . . . . . . . . . . . 8 4 1 2 1 . . . . . 1 2 3 . . 3 . DROP 3 | . . . . . . . . . . . . . . . . . . . . . . . . . 1 2 . PICKUP 6 | . . . . . . . . . . . . . . . . . . . . . . . . . 5 1 . EXPLORE 17 | . . . . . . . 12 . 5 . . . . . . . . . . . . . . . . . . RETURN 4 | . . . . . . . 3 . 1 . . . . . . . . . . . . . . . . . . Ally Attacks 1881 | . . . . . . 3 11 104 . 56 101 142 58 24 159 21 63 104 112 201 121 98 89 187 42 177 8 Total Damage 57866 | . . . . . . 60 161 1339 . 1382 3400 3318 1465 738 5850 831 1505 3124 1530 7725 3483 3040 3029 6813 2212 6676 185 Kills 407 | . . . . . . . 3 14 . 9 31 22 11 4 52 7 13 25 13 55 22 19 16 38 13 40 . Allies Corrupted 12 | . . . . . . . . . . . . . . . 1 . . . . 2 1 . . 4 . 4 . Allies Melted 2 | . . . . . . . . . . . . . . . . . 1 . . . . 1 . . . . . Intel | -11 -10 -10 -9 -8 -8 -8 -8 -8 -7 -7 -6 -6 -6 -6 -6 -5 -5 -5 -5 -5 -5 -4 -4 -4 -4 -3 -3 ------- Run | Jun Mat Min Mat Mat Gar Mat Sto Gar Fac Gar Fac Ext Cet Arc Hub Fac Gar Fac Gar Fac Gar Fac Gar Fac Gar Res Arm Robot Analysis Total 6 | . . . 3 . . . . . . . . . . . . . . 2 . 1 . . . . . . . Derelict Logs Recovered 2 | . . 2 . . . . . . . . . . . . . . . . . . . . . . . . . Drone Launches 28 | . . . . . . . 22 . 4 . . . . . 2 . . . . . . . . . . . . Drone Recoveries 15 | . . . . . . . 12 . 3 . . . . . . . . . . . . . . . . . . Exploration | -11 -10 -10 -9 -8 -8 -8 -8 -8 -7 -7 -6 -6 -6 -6 -6 -5 -5 -5 -5 -5 -5 -4 -4 -4 -4 -3 -3 ------------- Run | Jun Mat Min Mat Mat Gar Mat Sto Gar Fac Gar Fac Ext Cet Arc Hub Fac Gar Fac Gar Fac Gar Fac Gar Fac Gar Res Arm Turns Passed 43355 | 44 1506 851 2023 2056 1373 3384 1073 526 528 1494 1872 1593 403 1209 1474 2269 1497 3498 1536 2651 1621 1025 1391 1191 1073 2806 1388 Spaces Moved 22095 | 31 1094 705 1023 1001 696 1753 496 294 260 735 1004 805 191 269 628 1009 781 1935 842 1421 846 556 676 657 572 1239 576 Core 14 | 2 . . . . . . . . . . . . . . . . . . . . . . . . . . 12 Treads 10471 | . 11 . 4 1 . 1 3 . 2 . . . . . 3 1009 781 1935 842 1421 846 556 676 657 572 628 523 Legs . | . . . . . . . . . . . . . . . . . . . . . . . . . . . . Wheels 11610 | 29 1083 705 1019 1000 696 1752 493 294 258 735 1004 805 191 269 625 . . . . . . . . . . 611 41 Hover . | . . . . . . . . . . . . . . . . . . . . . . . . . . . . Flight . | . . . . . . . . . . . . . . . . . . . . . . . . . . . . Fastest Speed 50 | 50 100 115 100 140 150 135 150 150 150 150 150 150 150 165 165 160 160 160 160 160 160 160 160 160 152 130 50 Average Speed 155 | 96 113 115 139 150 150 149 152 150 151 161 166 164 166 173 180 160 160 160 160 160 160 160 160 160 157 173 153 Slowest Speed 560 | 100 240 115 560 560 150 317 330 150 243 165 240 165 240 180 270 160 160 160 160 160 240 160 160 160 160 240 255 Overloaded Moves . | . . . . . . . . . . . . . . . . . . . . . . . . . . . . Propulsion Burnouts . | . . . . . . . . . . . . . . . . . . . . . . . . . . . . Robots Hopped 2 | . . . . . . . . . . . . . . . . . . . 2 . . . . . . . . Cave-ins Triggered . | . . . . . . . . . . . . . . . . . . . . . . . . . . . . Exploration Rate (%) 57 | 3 96 99 75 59 61 98 87 39 14 88 26 90 51 81 69 28 72 51 77 54 65 13 55 17 60 43 40 Regions Visited 27 Branch Regions 7 Pre-discovered Areas 2 | . 1 1 . . . . . . . . . . . . . . . . . . . . . . . . . Known Exits Taken 12 | . 1 . . 1 . . 1 . 1 . 1 . . . 1 1 . 1 . 1 . 1 . 1 . 1 . Unknown Exits Taken 7 | 1 . 1 1 . . 1 . . . . . 1 1 1 . . . . . . . . . . . . . Scrap Searched 1 | . . 1 . . . . . . . . . . . . . . . . . . . . . . . . . Spaces Dug 458 | . 3 . 20 38 20 41 19 16 3 6 12 . . . 6 28 6 38 . 12 9 . . 1 . 40 140 Terrain Destroyed 903 | . 11 . 20 38 20 91 37 16 5 10 21 17 6 10 41 78 54 50 . 23 19 8 6 43 3 73 203 Melee 21 | . . . 2 1 . 11 . . 3 4 . . . . . . . . . . . . . . . . . Projectile 407 | . 3 . 1 . . 18 11 . 2 6 21 17 6 10 32 42 20 36 . 18 19 8 6 35 3 39 54 AOE 475 | . 8 . 17 37 20 62 26 16 . . . . . . 9 36 34 14 . 5 . . . 8 . 34 149 Terrain Rammed . | . . . . . . . . . . . . . . . . . . . . . . . . . . . . Walls Destroyed . | . . . . . . . . . . . . . . . . . . . . . . . . . . . . Machines Disabled . | . . . . . . . . . . . . . . . . . . . . . . . . . . . . Actions | -11 -10 -10 -9 -8 -8 -8 -8 -8 -7 -7 -6 -6 -6 -6 -6 -5 -5 -5 -5 -5 -5 -4 -4 -4 -4 -3 -3 --------- Run | Jun Mat Min Mat Mat Gar Mat Sto Gar Fac Gar Fac Ext Cet Arc Hub Fac Gar Fac Gar Fac Gar Fac Gar Fac Gar Res Arm Total 28412 | 41 1245 745 1372 1393 907 2305 709 358 344 954 1133 1001 257 953 856 1554 941 2228 966 1706 984 649 845 742 697 1652 875 Wait 2853 | . 57 31 56 193 13 308 100 24 22 28 31 99 25 631 148 393 69 145 26 147 18 37 52 20 55 83 42 Move 22067 | 30 1093 704 1022 1001 695 1752 496 293 260 734 1003 804 190 268 627 1008 780 1934 837 1420 845 555 675 656 571 1238 576 Hop 2 | . . . . . . . . . . . . . . . . . . . 2 . . . . . . . . Pick Up 391 | 4 15 2 52 23 16 24 5 2 10 17 11 3 6 9 5 21 8 15 12 10 16 3 10 5 9 44 34 Fast Attach 81 | 6 2 . . 2 . 4 1 . . 3 2 2 5 . 4 3 4 5 4 7 3 1 1 . 2 10 10 Attach 150 | . 2 . 9 5 3 15 2 . 3 9 8 2 . 3 3 7 . 7 5 6 1 5 1 3 1 23 27 Detach 37 | . . . . 2 1 6 1 . . 5 . 1 1 3 1 3 1 2 4 1 1 . . . 1 3 . Swap 627 | 1 13 1 58 57 24 53 19 7 18 26 22 9 3 1 9 35 13 25 17 32 13 18 18 21 14 71 29 Drop 314 | . 5 2 43 28 19 18 3 2 9 15 4 3 15 6 6 15 8 8 11 8 12 2 7 5 9 24 27 Fire 1627 | . 58 . 114 81 75 103 61 14 19 43 49 62 12 32 52 65 57 84 46 74 75 26 79 30 35 153 128 Melee 72 | . . . 18 1 1 20 . 1 3 26 2 . . . . . . . . . . . . . . . . Ram . | . . . . . . . . . . . . . . . . . . . . . . . . . . . . Kick . | . . . . . . . . . . . . . . . . . . . . . . . . . . . . Crush 11 | . . . . . . . . . . . . . . . . 4 . 2 . . . . . 1 . 2 2 Escape Stasis 143 | . . . . . 56 . 16 15 . 40 . 16 . . . . . . . . . . . . . . . Rewire 23 | . . . . . . 2 . . . 8 1 . . . 1 . 1 1 2 1 . 2 2 1 . 1 . Trap 9 | . . 5 . . 4 . . . . . . . . . . . . . . . . . . . . . . Miscellaneous 5 | . . . . . . . 5 . . . . . . . . . . . . . . . . . . . . Route ------- -11/Junkyard -10/Materials (discovered 4 exits: *Mat x3 / *Min) -10/Mines (discovered 3 exits: *Mat x2 / [*Exi]) -9/Materials (discovered 3 exits: *Mat / *Min x2) -8/Materials (discovered 3 exits: *Fac / *Sto / Gar) -8/Garrison (discovered 4 exits: *Mat x4) -8/Materials (discovered 4 exits: *Fac x3 / *Sto) -8/Storage (discovered 2 exits: *Fac / Gar) -8/Garrison -7/Factory -7/Garrison (discovered 3 exits: *Fac x3) -6/Factory (discovered 4 exits: *Low x2 / *Ext x2) -6/Extension (discovered 2 exits: *Fac / *Cet) -6/Cetus -6/Archives (discovered 3 exits: *Fac / *Hub x2) -6/Hub_04(d) (discovered 3 exits: *Fac x3) -5/Factory (discovered 4 exits: *Fac / Upp x2 / Gar) -5/Garrison (discovered 3 exits: *Fac x3) -5/Factory (discovered 7 exits: *Fac x4 / *Upp x2 / Gar) -5/Garrison (discovered 4 exits: *Fac x3 / *Fac) -5/Factory (discovered 7 exits: *Fac x4 / *Upp x2 / Gar) -5/Garrison (discovered 3 exits: *Fac x3) -4/Factory (discovered 3 exits: Upp x2 / Gar) -4/Garrison (discovered 3 exits: *Fac x3) -4/Factory (discovered 3 exits: Upp x2 / Gar) -4/Garrison (discovered 3 exits: *Res x3) -3/Research (discovered 5 exits: [*Res x2] / *Arm / *Tes x2) -3/Armory History --------- Turn | Location | Event 15 | -11/Junkyard | Discovered new exit (range 16) 45 | -11/Junkyard | Entered Materials 264 | -10/Materials | Discovered new exit (range 9) 302 | -10/Materials | Build established: Mutant 536 | -10/Materials | Discovered new exit (range 9) 668 | -10/Materials | Discovered new exit (range 14) 913 | -10/Materials | Discovered new exit (range 3) 965 | -10/Materials | Identified exit to Mines 1144 | -10/Materials | Central database locked down 1551 | -10/Materials | Entered Mines 1551 | -10/Mines | Accompanied by 1 ally 1911 | -10/Mines | Discovered new exit (range 3) 1951 | -10/Mines | Deemed a non-threat by the Exiles lab entrance 1951 | -10/Mines | Discovered new exit (range 5) 2095 | -10/Mines | Found a damaged Exp. Sensor Array with a note attached 2098 | -10/Mines | Found Prototype Device 2110 | -10/Mines | Learned location of Storage (-8) 2123 | -10/Mines | Found a hidden stash of uninstalled traps 2175 | -10/Mines | Learned location of 1 exit from Materials 2221 | -10/Mines | Discovered new exit (range 8) 2402 | -10/Mines | Entered Materials 2402 | -9/Materials | Evolved 2 slots: Propulsion x1, Utility x1 2403 | -9/Materials | Identified exit to Mines 2731 | -9/Materials | Discovered exit to Mines (range 11) 2845 | -9/Materials | Build established: Scavenger-Mutant 2852 | -9/Materials | Discovered new exit (range 16) 3032 | -9/Materials | Destroyed 7 combat bots 3166 | -9/Materials | Identified Exp. Sensor Array 3305 | -9/Materials | Repaired Hvy. Assault Rifle 3522 | -9/Materials | Central database locked down 3597 | -9/Materials | Core integrity fell below 50% 3600 | -9/Materials | Build established: Mutant 3602 | -9/Materials | First assault squad dispatched 3687 | -9/Materials | Lost 3 parts (2n1u) 3712 | -9/Materials | Destroyed 10 combat bots 4425 | -9/Materials | Entered another Materials area 4425 | -8/Materials | Evolved 2 slots: Utility x2 4660 | -8/Materials | Discovered new exit (range 8) 4987 | -8/Materials | Discovered new exit (range 11) 6481 | -8/Materials | Identified exit to Garrison 6481 | -8/Materials | Entered Garrison 6572 | -8/Garrison | Triggered checkpoint 6622 | -8/Garrison | Garrison Relay disabled 6662 | -8/Garrison | Garrison Relay disabled 6759 | -8/Garrison | Triggered checkpoint 6943 | -8/Garrison | Discovered new exit (range 65) 6943 | -8/Garrison | Discovered new exit (range 23) 6943 | -8/Garrison | Discovered new exit (range 57) 6943 | -8/Garrison | Discovered new exit (range 55) 6952 | -8/Garrison | Triggered checkpoint 6970 | -8/Garrison | Garrison Relay disabled 7050 | -8/Garrison | Triggered checkpoint 7169 | -8/Garrison | Installed Relay Interface Framework 7187 | -8/Garrison | Garrison Relay disabled 7192 | -8/Garrison | Triggered checkpoint 7244 | -8/Garrison | Build established: Hacker-Mutant 7412 | -8/Garrison | Triggered checkpoint 7416 | -8/Garrison | Core integrity fell below 50% 7464 | -8/Garrison | Triggered checkpoint 7854 | -8/Garrison | Entered Materials 8221 | -8/Materials | Build established: Mutant 8416 | -8/Materials | Repaired Adv. Treads 8476 | -8/Materials | Repaired Hvy. Ion Engine 8516 | -8/Materials | Repaired Hrd. Medium Armor Plating 9012 | -8/Materials | Repaired Arm. Wheel 9158 | -8/Materials | Discovered new exit (range 10) 9370 | -8/Materials | Discovered new exit (range 12) 9764 | -8/Materials | Discovered new exit (range 16) 10282 | -8/Materials | Discovered new exit (range 8) 10405 | -8/Materials | Lost 3 parts (1p1n1u) 11054 | -8/Materials | First assault squad dispatched 11104 | -8/Materials | Core integrity fell below 20% 11238 | -8/Materials | Entered Storage 11769 | -8/Storage | Discovered new exit (range 38) 12159 | -8/Storage | Repaired Arm. Treads 12231 | -8/Storage | Assisted by bots powering up and referring to "LRC-V3" 12311 | -8/Storage | Identified exit to Garrison 12311 | -8/Storage | Entered Garrison 12311 | -8/Garrison | Accompanied by 10 allies 12329 | -8/Garrison | Rescued a captive Derelict 12390 | -8/Garrison | Triggered checkpoint 12406 | -8/Garrison | Triggered checkpoint 12429 | -8/Garrison | Garrison Relay disabled 12533 | -8/Garrison | Build established: Commander-Mutant 12562 | -8/Garrison | Triggered checkpoint 12602 | -8/Garrison | Triggered checkpoint 12662 | -8/Garrison | Triggered checkpoint 12721 | -8/Garrison | Garrison Relay disabled 12756 | -8/Garrison | Expanded RIF knowledge: Watcher Feeds 12831 | -8/Garrison | Discovered new exit (range 3) 12837 | -8/Garrison | Entered Factory 12837 | -7/Factory | Evolved 2 slots: Utility x1, Weapon x1 13224 | -7/Factory | Garrison activated, responded to threat 13252 | -7/Factory | Build established: Hacker-Gunner 13365 | -7/Factory | Identified exit to Garrison 13365 | -7/Factory | Entered Garrison 13531 | -7/Garrison | Garrison Relay disabled 13560 | -7/Garrison | Triggered checkpoint 13768 | -7/Garrison | Discovered new exit (range 13) 13867 | -7/Garrison | Garrison Relay disabled 13953 | -7/Garrison | Expanded RIF knowledge: Signal Jamming 14142 | -7/Garrison | Discovered new exit (range 8) 14230 | -7/Garrison | Triggered checkpoint 14291 | -7/Garrison | Garrison Relay disabled 14416 | -7/Garrison | Build established: Hacker-Mutant 14428 | -7/Garrison | Triggered checkpoint 14460 | -7/Garrison | Triggered checkpoint 14538 | -7/Garrison | Triggered checkpoint 14744 | -7/Garrison | Garrison Relay disabled 14806 | -7/Garrison | Learned Factory security intel 14812 | -7/Garrison | Discovered new exit (range 12) 14859 | -7/Garrison | Entered Factory 14859 | -6/Factory | Accompanied by 7 allies 14859 | -6/Factory | Evolved 2 slots: Utility x2 15128 | -6/Factory | Build established: Commander-Gunner 15460 | -6/Factory | Identified exit to Lower Caves 15460 | -6/Factory | Identified exit to Extension 15622 | -6/Factory | Repaired Antimatter Reactor 15712 | -6/Factory | Repaired Hvy. Gauss Cannon? 15832 | -6/Factory | Repaired Broken Arm. Wheel 16095 | -6/Factory | Fabricated P-60 Hacker (x2) 16112 | -6/Factory | Hacker 5a assimilated hostile Y-54 Guardian 16259 | -6/Factory | First assault squad dispatched 16383 | -6/Factory | Cargo convoy interrupted 16652 | -6/Factory | Fabricated P-60 Hacker (x2) 16684 | -6/Factory | Fabricated P-60 Hacker? 16731 | -6/Factory | Entered Extension 16731 | -6/Extension | Accompanied by 9 allies 16998 | -6/Extension | Hacker 5f assimilated hostile Y-54 Guardian 17118 | -6/Extension | Build established: Commander-Mutant 17209 | -6/Extension | Rescued a captive Derelict 17725 | -6/Extension | Build established: Commander-Tank 17734 | -6/Extension | Spotted B-75 Beast 17747 | -6/Extension | Allies destroyed B-75 Beast 17747 | -6/Extension | Spotted B-75 Beast 17759 | -6/Extension | Allies destroyed B-75 Beast 17800 | -6/Extension | Rescued a captive Derelict 17801 | -6/Extension | Rescued a captive Derelict 17911 | -6/Extension | Rescued a captive Derelict 17951 | -6/Extension | Rescued a captive Derelict 17954 | -6/Extension | Rescued a captive Derelict 18044 | -6/Extension | Rescued A7 18163 | -6/Extension | Rescued a captive Derelict 18163 | -6/Extension | Rescued a captive Derelict 18232 | -6/Extension | Discovered new exit (range 10) 18234 | -6/Extension | Discovered new exit (range 6) 18324 | -6/Extension | Entered Cetus 18324 | -6/Cetus | Accompanied by 24 allies (A7) 18329 | -6/Cetus | Acquired a Cetus Manufacturing Module code from A7 18349 | -6/Cetus | Spotted Cetus Guard 18350 | -6/Cetus | Spotted Cetus Guard 18351 | -6/Cetus | Spotted Cetus Guard 18355 | -6/Cetus | Spotted Cetus Guard 18361 | -6/Cetus | Allies destroyed Cetus Guard 18361 | -6/Cetus | Allies destroyed Cetus Guard 18367 | -6/Cetus | Allies destroyed Cetus Guard 18367 | -6/Cetus | Allies destroyed Cetus Guard 18468 | -6/Cetus | Build established: Commander-Gunner 18481 | -6/Cetus | Started Cetus Manufacturing Module 18506 | -6/Cetus | Manufactured an Enhanced Grunt 18506 | -6/Cetus | Discovered new exit (range 16) 18531 | -6/Cetus | Manufactured an Enhanced Grunt 18556 | -6/Cetus | Manufactured an Enhanced Grunt 18581 | -6/Cetus | Manufactured an Enhanced Grunt 18606 | -6/Cetus | Manufactured an Enhanced Grunt 18643 | -6/Cetus | Destroyed A7 18644 | -6/Cetus | Extracted ID and sensor layout for unrecognized location from A7's data core 18700 | -6/Cetus | Found Med. Regenerative Plating 18727 | -6/Cetus | Entered Archives 18727 | -6/Archives | Accompanied by 19 allies 18766 | -6/Archives | Discovered new exit (range 15) 19043 | -6/Archives | Build established: Commander-Mutant 19086 | -6/Archives | Discovered new exit (range 16) 19197 | -6/Archives | Discovered new exit (range 15) 19519 | -6/Archives | Build established: Commander-Tank 19936 | -6/Archives | Entered Hub_04(d) 19936 | -6/Hub_04(d) | Accompanied by 18 allies 19936 | -6/Hub_04(d) | Discovered new exit (range 11) 20017 | -6/Hub_04(d) | Discovered new exit (range 22) 20044 | -6/Hub_04(d) | Identified exit to Factory 20090 | -6/Hub_04(d) | Assembled infested ambush trap array 20636 | -6/Hub_04(d) | First assault squad dispatched 20895 | -6/Hub_04(d) | Garrison activated, responded to threat 20900 | -6/Hub_04(d) | Identified exit to Garrison 21095 | -6/Hub_04(d) | Network Hub disabled 21207 | -6/Hub_04(d) | Discovered exit to Factory (range 5) 21268 | -6/Hub_04(d) | Network Hub disabled 21380 | -6/Hub_04(d) | System corruption reached 10% 21407 | -6/Hub_04(d) | Spotted Lightning 21407 | -6/Hub_04(d) | Network Hub disabled 21410 | -6/Hub_04(d) | Entered Factory 21410 | -5/Factory | Accompanied by 1 ally 21410 | -5/Factory | Evolved 2 slots: Propulsion x1, Utility x1 21596 | -5/Factory | Identified exit to Upper Caves 21695 | -5/Factory | Garrison activated, responded to threat 22019 | -5/Factory | Fabricated Adv. Heavy Siege Treads? 22173 | -5/Factory | Repaired Neutron Cannon? 22283 | -5/Factory | Build established: Hacker-Skirmisher 22485 | -5/Factory | Discovered new exit (range 11) 22527 | -5/Factory | Identified exit to Factory 22786 | -5/Factory | Found Prototype Launcher 22797 | -5/Factory | Identified Mni. Smartbomb Launcher 22846 | -5/Factory | Build established: Hacker-Mutant 23074 | -5/Factory | Repaired Adv. KE Penetrator? 23282 | -5/Factory | Repaired Neutron Cannon 23382 | -5/Factory | Repaired Adv. KE Penetrator? 23430 | -5/Factory | Repaired Imp. Utility Shielding 23535 | -5/Factory | Identified exit to Garrison 23656 | -5/Factory | Fabricated P-70 Sage? 23679 | -5/Factory | Entered Garrison 23679 | -5/Garrison | Accompanied by 6 allies 23767 | -5/Garrison | Discovered new exit (range 39) 23767 | -5/Garrison | Discovered new exit (range 43) 23767 | -5/Garrison | Discovered new exit (range 58) 23791 | -5/Garrison | Garrison Relay disabled 24006 | -5/Garrison | Triggered checkpoint 24008 | -5/Garrison | Spotted B-75 Beast 24076 | -5/Garrison | Triggered checkpoint 24183 | -5/Garrison | Triggered checkpoint 24192 | -5/Garrison | Destroyed B-75 Beast 24535 | -5/Garrison | H-XX Assembler disabled 24703 | -5/Garrison | Found embedded Infiltrators 24904 | -5/Garrison | Triggered checkpoint 24908 | -5/Garrison | Triggered checkpoint 25048 | -5/Garrison | Garrison Relay disabled 25070 | -5/Garrison | Expanded RIF knowledge: Command Fork 25176 | -5/Garrison | Entered Factory 25176 | -5/Factory | Accompanied by 2 allies 25368 | -5/Factory | Build established: Bothacker-Mutant 25730 | -5/Factory | Repaired Centrium Medium Armor Plating? 26042 | -5/Factory | Found Prototype Launcher 26164 | -5/Factory | Identified Tesla Bomb Launcher 26170 | -5/Factory | Repaired Adv. Heavy Siege Treads? 26273 | -5/Factory | Fabricated P-70 Sage (x2) 26307 | -5/Factory | Build established: Hacker-Gunner 26423 | -5/Factory | Repaired Centrium Heavy Treads 26475 | -5/Factory | Repaired Imp. System Restoration Module 26558 | -5/Factory | Spotted B-75 Beast 26855 | -5/Factory | Build established: Hacker-Mutant 27532 | -5/Factory | Fabricated P-70 Sage (x2) 27574 | -5/Factory | Repaired Neutron Cannon 27597 | -5/Factory | Repaired Imp. Utility Shielding 27694 | -5/Factory | Fabricated I-47 Archangel (x1) 27727 | -5/Factory | Repaired Centrium Medium Armor Plating? 28075 | -5/Factory | Identified exit to Garrison 28285 | -5/Factory | Build established: Hacker-Gunner 28352 | -5/Factory | Fabricated P-70 Sage (x2) 28534 | -5/Factory | Fabricated I-47 Archangel (x1) 28639 | -5/Factory | Sage 6e assimilated hostile B-60 Warrior 28674 | -5/Factory | Entered Garrison 28674 | -5/Garrison | Accompanied by 7 allies 28706 | -5/Garrison | Triggered checkpoint 28742 | -5/Garrison | Garrison Relay disabled 28944 | -5/Garrison | Triggered checkpoint 28958 | -5/Garrison | Triggered checkpoint 29064 | -5/Garrison | Sage 6e assimilated hostile S-27 Virus 29070 | -5/Garrison | Triggered checkpoint 29081 | -5/Garrison | Rescued a captive Derelict 29175 | -5/Garrison | Garrison Relay disabled 29192 | -5/Garrison | Triggered checkpoint 29207 | -5/Garrison | Discovered new exit (range 5) 29278 | -5/Garrison | Discovered exit to Factory (range 14) 29362 | -5/Garrison | Triggered checkpoint 29431 | -5/Garrison | Discovered exit to Factory (range 12) 29444 | -5/Garrison | Expanded RIF knowledge: Autoassimilate 29561 | -5/Garrison | Discovered exit to Factory (range 69) 29561 | -5/Garrison | Discovered exit to Factory (range 41) 29561 | -5/Garrison | Discovered exit to Factory (range 18) 29561 | -5/Garrison | Discovered new exit (range 63) 29654 | -5/Garrison | Triggered checkpoint 29687 | -5/Garrison | Garrison Relay disabled 29892 | -5/Garrison | Spotted Executioner 29904 | -5/Garrison | Destroyed Executioner 29909 | -5/Garrison | Found Prototype Processor 29909 | -5/Garrison | Identified Exp. Core Analyzer 29925 | -5/Garrison | Rewired Executioner 29926 | -5/Garrison | Rewired Executioner 29939 | -5/Garrison | Found Exp. Targeting Computer 29960 | -5/Garrison | Build established: Bothacker-Mutant 30054 | -5/Garrison | Triggered checkpoint 30210 | -5/Garrison | Entered Factory 30210 | -5/Factory | Accompanied by 4 allies 30351 | -5/Factory | Build established: Bothacker-Gunner 30353 | -5/Factory | Fabricated P-70 Sage (x2) 30827 | -5/Factory | Build established: Botlord-Mutant 31089 | -5/Factory | Repaired Adv. Heavy Siege Treads? 31100 | -5/Factory | Discovered exit to Factory (range 33) 31432 | -5/Factory | Repaired Rnf. Fission Core 31470 | -5/Factory | Repaired Centrium Heavy Treads 31548 | -5/Factory | Build established: Bothacker-Mutant 31758 | -5/Factory | Repaired Broken Neutron Cannon? 31798 | -5/Factory | Discovered exit to Upper Caves (range 9) 31884 | -5/Factory | Build established: Hacker-Mutant 31894 | -5/Factory | Fabricated P-70 Sage (x2) 31973 | -5/Factory | Fabricated P-70 Sage (x2) 32010 | -5/Factory | First assault squad dispatched 32050 | -5/Factory | Discovered exit to Factory (range 7) 32250 | -5/Factory | Repaired Imp. System Restoration Module 32266 | -5/Factory | Build established: Commander-Mutant 32421 | -5/Factory | Sage 6n assimilated hostile B-60 Warrior 32550 | -5/Factory | Allies destroyed Executioner 32603 | -5/Factory | Fabricated B-60 Warrior (x3) 32838 | -5/Factory | Identified exit to Garrison 32861 | -5/Factory | Entered Garrison 32861 | -5/Garrison | Accompanied by 15 allies 33104 | -5/Garrison | Expanded RIF knowledge: Command Fork 33168 | -5/Garrison | Triggered checkpoint 33172 | -5/Garrison | Triggered checkpoint 33183 | -5/Garrison | Core integrity fell below 50% 33279 | -5/Garrison | Destroyed 10 combat bots 33408 | -5/Garrison | Discovered exit to Factory (range 13) 33414 | -5/Garrison | Spotted B-75 Beast 33417 | -5/Garrison | Rewired B-75 Beast 33419 | -5/Garrison | Spotted B-90 Cyclops 33420 | -5/Garrison | Rewired B-90 Cyclops 33456 | -5/Garrison | Triggered checkpoint 33488 | -5/Garrison | Garrison Relay disabled 33496 | -5/Garrison | Triggered checkpoint 33756 | -5/Garrison | Triggered checkpoint 33807 | -5/Garrison | Discovered exit to Factory (range 36) 33807 | -5/Garrison | Discovered exit to Factory (range 21) 33807 | -5/Garrison | Discovered exit to Factory (range 46) 33940 | -5/Garrison | Triggered checkpoint 33947 | -5/Garrison | Garrison Relay disabled 34032 | -5/Garrison | Found Unknown Hackware 34034 | -5/Garrison | Found Unknown Hackware 34037 | -5/Garrison | Found Unknown Hackware 34040 | -5/Garrison | Found Unknown Hackware 34482 | -5/Garrison | Entered Factory 34482 | -4/Factory | Accompanied by 4 allies 34482 | -4/Factory | Evolved 2 slots: Power x1, Utility x1 34732 | -4/Factory | First assault squad dispatched 34858 | -4/Factory | Identified exit to Upper Caves 34866 | -4/Factory | Repaired Adv. Cooling System? 34950 | -4/Factory | Repaired Rnf. Antimatter Reactor? 34967 | -4/Factory | Fabricated P-70 Sage (x2) 35058 | -4/Factory | Build established: Botlord-Gunner 35060 | -4/Factory | Fabricated I-47 Archangel (x1) 35310 | -4/Factory | Repaired Adv. KE Penetrator 35401 | -4/Factory | Sage 7a assimilated hostile G-67 Veteran 35469 | -4/Factory | Identified exit to Garrison 35507 | -4/Factory | Entered Garrison 35507 | -4/Garrison | Accompanied by 11 allies 35572 | -4/Garrison | Expanded RIF knowledge: Alert ID Control 35702 | -4/Garrison | Discovered new exit (range 53) 35702 | -4/Garrison | Discovered new exit (range 50) 35702 | -4/Garrison | Discovered new exit (range 48) 35743 | -4/Garrison | Spotted B-86 Titan 35744 | -4/Garrison | Triggered checkpoint 35745 | -4/Garrison | Triggered checkpoint 35770 | -4/Garrison | Destroyed B-86 Titan 35840 | -4/Garrison | Triggered checkpoint 35904 | -4/Garrison | Triggered checkpoint 36009 | -4/Garrison | Found embedded Infiltrators 36018 | -4/Garrison | Garrison Relay disabled 36030 | -4/Garrison | Triggered checkpoint 36192 | -4/Garrison | Triggered checkpoint 36320 | -4/Garrison | Triggered checkpoint 36323 | -4/Garrison | Expanded RIF knowledge: Coupler Efficiency 36353 | -4/Garrison | Garrison Relay disabled 36407 | -4/Garrison | Identified Relay Coupler [Proto] (x4) 36409 | -4/Garrison | Spotted Executioner 36409 | -4/Garrison | Spotted Executioner 36433 | -4/Garrison | Assimilated Executioner with formatsys_high 36446 | -4/Garrison | Allies destroyed Executioner 36898 | -4/Garrison | Entered Factory 36898 | -4/Factory | Accompanied by 11 allies 37102 | -4/Factory | Fabricated I-47 Archangel (x1) 37173 | -4/Factory | First assault squad dispatched 37186 | -4/Factory | Fabricated P-70 Sage (x2) 37771 | -4/Factory | Fabricated Enh. Nova Cannon (x1) 37812 | -4/Factory | Garrison activated, responded to threat 37872 | -4/Factory | Fabricated P-70 Sage (x2) 37896 | -4/Factory | Found Exp. Targeting Computer 37998 | -4/Factory | Sage 7f assimilated hostile H-77 Assassin 38087 | -4/Factory | Identified exit to Garrison 38089 | -4/Factory | Entered Garrison 38089 | -4/Garrison | Accompanied by 6 allies 38220 | -4/Garrison | Expanded RIF knowledge: Robot Detection 38238 | -4/Garrison | Triggered checkpoint 38242 | -4/Garrison | Garrison Relay disabled 38292 | -4/Garrison | Triggered checkpoint 38366 | -4/Garrison | Spotted B-86 Titan 38368 | -4/Garrison | Triggered checkpoint 38369 | -4/Garrison | Autoassimilated Titan 7a with RIF 38449 | -4/Garrison | Discovered new exit (range 54) 38449 | -4/Garrison | Discovered new exit (range 49) 38449 | -4/Garrison | Discovered new exit (range 34) 38472 | -4/Garrison | Triggered checkpoint 38496 | -4/Garrison | Triggered checkpoint 38614 | -4/Garrison | Triggered checkpoint 38816 | -4/Garrison | Triggered checkpoint 38853 | -4/Garrison | Garrison Relay disabled 38920 | -4/Garrison | Garrison Relay disabled 38934 | -4/Garrison | Build established: Botlord-Mutant 39162 | -4/Garrison | Entered Research 39162 | -3/Research | Accompanied by 5 allies 39162 | -3/Research | Evolved 2 slots: Utility x2 39288 | -3/Research | Repaired Centrium Heavy Treads 39408 | -3/Research | Fabricated P-70 Sage (x2) 39446 | -3/Research | Fabricated Y-54 Guardian (x2) 39503 | -3/Research | Fabricated Y-54 Guardian? 39566 | -3/Research | Discovered new exit (range 9) 39582 | -3/Research | Identified exit to Testing 39912 | -3/Research | First assault squad dispatched 39923 | -3/Research | Fabricated P-70 Sage? 40035 | -3/Research | Build established: Botlord-Gunner 40451 | -3/Research | Lost 4 parts (1n1u2w) 40461 | -3/Research | System corruption reached 10% 40509 | -3/Research | Lost 5 parts (1p1n1u2w) 40866 | -3/Research | Build established: Botlord-Mutant 41068 | -3/Research | Identified exit to Armory 41423 | -3/Research | Discovered new exit (range 22) 41466 | -3/Research | Discovered new exit (range 151) 41726 | -3/Research | Repaired Broken Centrium Heavy Treads? 41872 | -3/Research | Spotted B-86 Titan 41887 | -3/Research | Assimilated Titan 8a with formatsys_high 41911 | -3/Research | Found Fusion Bomb Launcher 41968 | -3/Research | Entered Armory 41968 | -3/Armory | Accompanied by 2 allies 42120 | -3/Armory | Lost 3 parts (2u1w) 42123 | -3/Armory | Destroyed 14 combat bots 42181 | -3/Armory | Fabricated Biometal Heavy Treads? 42276 | -3/Armory | Build established: Botlord-Gunner 42295 | -3/Armory | Destroyed 7 combat bots 42329 | -3/Armory | Core integrity fell below 50% 42468 | -3/Armory | First assault squad dispatched 42801 | -3/Armory | Lost 5 parts (2p1n2u) 43073 | -3/Armory | Lost 5 parts (1p2u2w) 43114 | -3/Armory | Found Exp. Sensor Array 43148 | -3/Armory | Found Antimissile System 43289 | -3/Armory | Build established: Botlord-Mutant 43333 | -3/Armory | Core integrity fell below 20% 43356 | -3/Armory | Destroyed by S-43 Plague with Heavy Machine Gun Last Messages --------------- 43339_ Enh. Quantum Rifle destroyed. 43340_ The unstable cave ceiling collapses. 43342_ B-74 Champion Rnf. Antimatter Reactor blasted off. 43343_ The unstable cave ceiling collapses. 43343_ Adv. Transmission Jammer destroyed. 43344_ Linear Accelerator destroyed. 43344_ Adv. Cooling System destroyed. 43345_ System corrupted: IFF burst signal emitted. 43345_ The unstable cave ceiling collapses. 43345_ Dropped Imp. Matter Compressor. 43346_ Extracted 268 matter. 43346_ Dropped Huge Storage Unit. 43347_ I-47 Archangel sends out distress signal. 43347_ Biometal Heavy Treads destroyed. 43351_ Knocked back. 43351_ Dropped Enh. Nova Cannon. 43352_ X-82 Rainmaker knocked back. 43352_ Adv. Coolant Injector destroyed. 43352_ Knocked back. 43353_ The unstable cave ceiling collapses. Map ----- +----------------------------------------------------+ | ?????????????????????????????????????????????????? | | ?????????????????????????????????????????????????? | | ?????????????????????????????????????????????????? | | ?????????????????????????????????????????????????? | | ?????????????????????????????????????????????????? | | ?????????????????????????????????????????????????? | | ?????????????????????????????????????Y???????????? | | ?????????????????????????????????????????????????? | | ?????????????????????????????????????????????????? | | ?????????????????????????????????????????????????? | | ?????????????????????????????????????????????????? | | ?????????????????????????????????????????????????? | | ?????????????????????????????????????????????????? | | ?????????????????????????????????????????????????? | | ?????????????????????????????????????????????????? | | ?????????????????????????????????????????????????? | | ?????????????????????????????????????????????????? | | ???????????????????????????????####??????????????? | | ??????????????????????????????? ??????????????? | | ???????????????????????????????" "??????????????? | | ???????????????????????????????? "?#????????????? | | ???????????????????????????????? " #????????????? | | ???????????????????????????????? " ?????????????? | | ???????????????????????????????? ???????##?????? | | ?????????????########+###########x######?? #?????? | | ???????#s s @ xx ^^ ### ###### | | ???????# #### ####+### l l Y | | ???????????????????????????# % """"" | | ???????????????????????????# ## # ! """"" | | ???????????????????????????# = = ! """"" | | ???????????????????????????# [#% ! | | ???????????????????????????# ! ! | | ???????????????????????????# ]%!! [ | | ???????????????????????????# ]]][[[%= [# ###### | | ???????????????????????????# ]]][[[!#!=%| #??? | | ???????????????????????????# !=!!!]!% #??? | | ???????????????????????????##### |#!!| # | | ???????????????????????????????#### !! # | | ???????????????????????????????# #?? * % %# # | | ????????????????????????????????# #? " ! ## | | ?????????????????????????????????# ### % [% % | | ??????????????????????????????????#"##+"# ! | | ???????????????????????????????????# # % | | ???????????????????????????????????# | | ???????????????????????????????????# ""^ | | ???????????????????????????????????# Y" # !! | | ???????????????????????????????????# """ # ![! | | ???????????????????????????????????# # !!! | | ???????????????????????????????????######## | | ??????????????????????????????????????????######## | +----------------------------------------------------+ Best States ------------- Heat Dissipation 108 Coolant Potential 100 Energy Generation 45 Energy Capacity 590 Matter Stores 300 Matter Capacity 300 Sight Range 23 Robot Scan Range 20 Terrain Scan Density 10 Jamming Range 16 Armor Coverage 450 Resistance: KI 30 Utility Shielding 66 Weapon Cycling 25 Evasion (%) 40 Targeting Accuracy 12 Core Analysis 8 Recoil Reduction 4 Particle Charging 25 Kinecelleration 40 Offensive Hacking 26 Defensive Hacking 26 Relay Coupler Types 5 Relay Coupler Value 133 Authchip Count 4 Item Schematics ----------------- Huge Storage Unit | -10/Materials | Hacked Exp. Sensor Array | -9/Materials | Scanalyzed Hcp. Storage Unit | -8/Materials | Scanalyzed Hacking Suite | -8/Materials | Scanalyzed Imp. Utility Shielding | -8/Materials | Scanalyzed Adv. Targeting Computer | -8/Materials | Scanalyzed Plasma Cutter | -8/Materials | Scanalyzed Quantum Capacitor | -6/Factory | Hacked Imp. Phase Shifter | -6/Factory | Hacked Imp. Armor Integrity Analyzer | -5/Factory | Hacked Centrium Medium Armor Plating | -5/Factory | Scanalyzed Prc. Energy Filter | -5/Factory | Scanalyzed Adv. Hacking Suite | -5/Factory | Scanalyzed Imp. Remote Datajack | -5/Factory | Scanalyzed Adv. System Shield | -5/Factory | Scanalyzed Imp. System Restoration Module | -5/Factory | Scanalyzed Com. HERF Cannon | -5/Factory | Hacked Hyp. Gauss Cannon | -5/Factory | Hacked Imp. Force Field | -5/Factory | Hacked Lrn. Proton Cannon | -5/Factory | Hacked Helical Railgun | -5/Factory | Scanalyzed Imp. Kinecellerator | -5/Factory | Scanalyzed Cld. Plasma Rifle | -5/Factory | Scanalyzed Exp. Utility Shielding | -5/Factory | Hacked Adv. Cooling System | -5/Factory | Scanalyzed Adv. Heavy Siege Treads | -4/Factory | Hacked Centrium Heavy Treads | -4/Factory | Scanalyzed Lgt. Antimatter Cannon | -4/Factory | Scanalyzed Robot Schematics ------------------ P-60 Hacker | -6/Factory | Hacked P-70 Sage | -5/Factory | Hacked B-48 Gladiator | -5/Factory | Hacked I-47 Archangel | -5/Factory | Hacked B-60 Warrior | -5/Factory | Hacked Y-54 Guardian | -5/Factory | Hacked X-72 Disruptor | -5/Factory | Hacked Fabricated ------------ P-60 Hacker | x2 | -6/Factory | Authchip P-60 Hacker | x2 | -6/Factory | Authchip P-60 Hacker | x2 | -6/Factory Adv. Heavy Siege Treads | x2 | -5/Factory | Preloaded P-70 Sage | x2 | -5/Factory P-70 Sage | x2 | -5/Factory P-70 Sage | x2 | -5/Factory | Authchip I-47 Archangel | x1 | -5/Factory | Authchip P-70 Sage | x2 | -5/Factory I-47 Archangel | x1 | -5/Factory P-70 Sage | x2 | -5/Factory | Authchip P-70 Sage | x2 | -5/Factory P-70 Sage | x2 | -5/Factory B-60 Warrior | x3 | -5/Factory | Preloaded P-70 Sage | x2 | -4/Factory | Authchip I-47 Archangel | x1 | -4/Factory | Authchip I-47 Archangel | x1 | -4/Factory | Preloaded P-70 Sage | x2 | -4/Factory | Authchip Enh. Nova Cannon | x1 | -4/Factory | Preloaded P-70 Sage | x2 | -4/Factory P-70 Sage | x2 | -3/Research | Authchip Y-54 Guardian | x2 | -3/Research | Authchip Y-54 Guardian | x2 | -3/Research | Authchip P-70 Sage | x2 | -3/Research | Authchip Biometal Heavy Treads | x2 | -3/Armory | Preloaded Alien Tech Used ----------------- None Achievements -------------- Fearless Challenges ------------ None Game ------ Seed AdvancedFlightArmor Manual? 0 Play Time 10:09:52 Cumulative 695.3 hours Start 2023.05.09 @ 19:17:25 End 2023.05.10 @ 23:55:00 Sessions 9 Manual Loads 0 Difficulty Rogue Special Mode None Game No. 140 Rogue 140 Adventurer 0 Explorer 0 Win Type - Total 40 Types 22/4/6/1/2/1/2/2/0 Lore% 94 Gallery% 95 Achievement% 89 Wizard Run 0 Options --------- ASCII 0 Keyboard 0 Movement Numpad Keybinds 0 Fullscreen 1 Font 14/SmallcapsGlow Map View 84x54 Tactical HUD 1 Map Filters NONE Filters NONE Steam 1 RUN: f65d2712-8f6c-4428-8033-7842dfdbec43